Workbook

Sheet PRODUCCION
B3: REDSYSTEMCE, S.L. | H3: PROGRAMA DE PRODUCCIÓN | O3: Lotes iniciados del 12 de enero de 2015 al 14 de enero de 2015
B5: Fecha | C5: OF/LOTE | D5: Cliente | E5: ResClav01 | F5: ResClav02 | G5: ResClav03 | H5: Secc | I5: UnitPed | J5: UnitFab | K5: ResLong | L5: TimeIP | M5: TimeINE | N5: TimeEP | O5: TimeAct | P5: Rend | Q5: HorIni | R5: HorFin | S5: FinTurno
A6: AQUÍ-> | B6: 20150117 | C6: 201500133 | D6: TXX OILS | E6: RE225 | F6: TU-80 | G6: 000662 | H6: Extru | I6: 200 | J6: 200 | K6: 2100 | L6: 0 | M6: 0 | N6: 1.882158273 | O6: 0.42 | P6: 0.01 | Q6: 11.69784173 | R6: 14 | S6: 14
A7: |
A8: |
A9: TITULOS | B9: Fecha | C9: OF/LOTE | D9: Cliente | E9: ResClav01 | F9: ResClav02 | G9: ResClav03 | H9: Secc | I9: UnitPed | J9: UnitFab | K9: ResLong | L9: TimeIP | M9: TimeINE | N9: TimeEP | O9: TimeAct | P9: Rend | Q9: HorIni | R9: HorFin | S9: FinTurno
A10: x | B10: Semiterm | C10: 201500116 | D10: TXX OILS | E10: RE220 | F10: TU-12 | G10: 003359 | H10: Bucle | I10: 450 | J10: 455 | K10: 500 | L10: 0.2 | M10: =1*0.2*K10*J10/1000000 -> 0.0455 | N10: =+O10*(16-SUM($O$29:$O$32)-SUM($L$29:$L$32)-SUM($M$29:$M$32))/SUM($O$29:$O$32) -> 0.5725555556 | O10: =1*(P10*J10*K10/10000) -> 1.1375 | P10: 0.05 | Q10: 6 | R10: =+Q10+SUM(L10:O10) -> 7.955555556 | S10: 14
A11: x | B11: Semiterm | C11: 201500119 | D11: ALMACÉN | E11: RE220 | F11: TU-12 | G11: 003359 | H11: Bucle | I11: 3500 | J11: 3505 | K11: 500 | L11: 0 | M11: =1*0.2*K11*J11/1000000 -> 0.3505 | N11: =+O11*(16-SUM($O$29:$O$32)-SUM($L$29:$L$32)-SUM($M$29:$M$32))/SUM($O$29:$O$32) -> 4.410565324 | O11: 8.7625 | P11: 0.05 | Q11: =+R10 -> 7.955555556 | R11: 21.47912088 | S11: 14
A12: x | B12: Semiterm | C12: 201500120 | D12: ALMACÉN | E12: RE220 | F12: TU-12 | G12: 003359 | H12: Bucle | I12: 3500 | J12: 5 | K12: 500 | L12: 0 | M12: =1*0.2*K12*J12/1000000 -> 0.0005 | N12: 0.006291819292 | O12: 0.0125 | P12: 0.05 | Q12: =+R11 -> 21.47912088 | R12: 21.4984127 | S12: 22
A13: x | B13: Semiterm | C13: 201500121 | D13: BHS Hoover | E13: RE220 | F13: TU-12 | G13: 003359 | H13: Bucle | I13: 120 | J13: 130 | K13: 500 | L13: 0 | M13: =1*0.2*K13*J13/1000000 -> 0.013 | N13: 0.1635873016 | O13: 0.325 | P13: 0.05 | Q13: =+R12 -> 21.4984127 | R13: 22 | S13: 22
B14: 20150112 | C14: 201500122 | D14: BHS Hoover | E14: RE220 | F14: TU-80 | G14: 000045 | H14: Bucle | I14: 1200 | J14: 1250 | K14: 1970 | L14: =1*0.24 -> 0.24 | M14: =1*0.1*K14*J14/1000000 -> 0.24625 | N14: =+O14*(16-SUM($O$14:$O$17)-SUM($L$14:$L$17)-SUM($M$14:$M$17))/SUM($O$14:$O$17) -> 0.7629619057 | O14: 6.1045375 | P14: 0.02479 | Q14: 6 | R14: =+Q14+SUM(L14:O14) -> 13.35374941 | S14: 14
B15: 20150112 | C15: 201500123 | D15: BHS Hoover | E15: RE225 | F15: TU-80 | G15: 000428 | H15: Bucle | I15: 825 | J15: 830 | K15: 493 | L15: =1*0.45 -> 0.45 | M15: =1*0.1*K15*J15/1000000 -> 0.040919 | N15: =+O15*(16-SUM($O$14:$O$17)-SUM($L$14:$L$17)-SUM($M$14:$M$17))/SUM($O$14:$O$17) -> 0.2045667717 | O15: 1.63676 | P15: 0.04 | Q15: =+S14 -> 14 | R15: 16.33224577 | S15: =+Q15+8 -> 22
B16: 20150112 | C16: 201500124 | D16: ASOLATE, S.A. | E16: RE225 | F16: TU-80 | G16: 000428 | H16: Bucle | I16: 900 | J16: 925 | K16: 493 | L16: 0 | M16: =1*0.2*K16*J16/1000000 -> 0.091205 | N16: 0.2279810407 | O16: 1.8241 | P16: 0.04 | Q16: =+R15 -> 16.33224577 | R16: 18.47553181 | S16: =+S15 -> 22
B17: 20150112 | C17: 201500125 | D17: TVP France | E17: RE225 | F17: TU-80 | G17: 000428 | H17: Bucle | I17: 1800 | J17: 1800 | K17: 493 | L17: 0 | M17: =1*0.2*K17*J17/1000000 -> 0.17748 | N17: 0.4436387819 | O17: 3.5496 | P17: 0.04 | Q17: =+R16 -> 18.47553181 | R17: 22.64625059 | S17: =+S16 -> 22
B18: 20150113 | C18: 201500126 | D18: BHS Hoover | E18: RE220 | F18: TU-12 | G18: 003359 | H18: Bucle | I18: 50 | J18: 55 | K18: 800 | L18: =1*0.45 -> 0.45 | M18: =1*0.2*K18*J18/1000000 -> 0.0088 | N18: =+O18*(16-SUM($O$18:$O$21)-SUM($L$18:$L$21)-SUM($M$18:$M$21))/SUM($O$18:$O$21) -> 0.04835685156 | O18: 0.176 | P18: 0.04 | Q18: 6 | R18: 6.683156852 | S18: 14
B19: 20150113 | C19: 201500127 | D19: NOVANTIA, S.A. | E19: RE225 | F19: TU-80 | G19: 000012 | H19: Bucle | I19: 2450 | J19: 2460 | K19: 800 | L19: =1*0.24 -> 0.24 | M19: =1*0.2*K19*J19/1000000 -> 0.3936 | N19: =+O19*(16-SUM($O$18:$O$21)-SUM($L$18:$L$21)-SUM($M$18:$M$21))/SUM($O$18:$O$21) -> 2.162870088 | O19: 7.872 | P19: 0.04 | Q19: =+R18 -> 6.683156852 | R19: 17.35162694 | S19: 14
B20: 20150113 | C20: 201500128 | D20: CALORIE IT, S.L.U. | E20: RE225 | F20: TU-80 | G20: 000012 | H20: Bucle | I20: 40 | J20: 40 | K20: 800 | L20: 0 | M20: =1*0.2*K20*J20/1000000 -> 0.0064 | N20: 0.03516861932 | O20: 0.128 | P20: 0.04 | Q20: =+R19 -> 17.35162694 | R20: 17.52119556 | S20: 22
B21: 20150113 | C21: 201500129 | D21: CALORIE IT, S.L.U. | E21: RE220 | F21: TU-80 | G21: 000045 | H21: Bucle | I21: 650 | J21: 660 | K21: 1970 | L21: =1*0.24 -> 0.24 | M21: =1*0.1*K21*J21/1000000 -> 0.13002 | N21: 0.8855886412 | O21: 3.2231958 | P21: 0.02479 | Q21: =+R20 -> 17.52119556 | R21: 22 | S21: =+S20 -> 22
B22: 20150114 | C22: 201500130 | D22: FUGOR, S.A. | E22: RE225 | F22: TU-80 | G22: 000662 | H22: Bucle | I22: 40 | J22: 40 | K22: 2100 | L22: =1*0.45 -> 0.45 | M22: =1*0.2*K22*J22/1000000 -> 0.0168 | N22: =+O22*(16-SUM($O$22:$O$28)-SUM($L$22:$L$28)-SUM($M$22:$M$28))/SUM($O$22:$O$28) -> 0.151809328 | O22: 0.208236 | P22: 0.02479 | Q22: 6 | R22: =+Q22+SUM(L22:O22) -> 6.826845328 | S22: 14
B23: 20150114 | C23: 201500131 | D23: ASTUR INDUSTRIAL, S.A. | E23: RE225 | F23: TU-80 | G23: 000662 | H23: Bucle | I23: 600 | J23: 610 | K23: 2100 | L23: 0 | M23: =1*0.2*K23*J23/1000000 -> 0.2562 | N23: =+O23*(16-SUM($O$22:$O$28)-SUM($L$22:$L$28)-SUM($M$22:$M$28))/SUM($O$22:$O$28) -> 2.315092252 | O23: 3.175599 | P23: 0.02479 | Q23: =+R22 -> 6.826845328 | R23: =+Q23+SUM(L23:O23) -> 12.57373658 | S23: 14
B24: 20150114 | C24: 201500123 | D24: BHS Hoover | E24: RE225 | F24: TU-80 | G24: 000428 | H24: Bucle | I24: 825 | J24: 840 | K24: 493 | L24: 0 | M24: =1*0.1*K24*J24/1000000 -> 0.041412 | N24: =+O24*(16-SUM($O$14:$O$17)-SUM($L$14:$L$17)-SUM($M$14:$M$17))/SUM($O$14:$O$17) -> 0.2070314316 | O24: 1.65648 | P24: 0.04 | Q24: 12.57373658 | R24: =+Q24+SUM(L24:O24) -> 14.47866001 | S24: 14
B25: 20150114 | C25: 201500132 | D25: TCC SHIPS, CORP. | E25: RE225 | F25: TU-80 | G25: 000662 | H25: Bucle | I25: 100 | J25: 110 | K25: 2100 | L25: 0 | M25: =1*0.2*K25*J25/1000000 -> 0.0462 | N25: =+O25*(16-SUM($O$22:$O$28)-SUM($L$22:$L$28)-SUM($M$22:$M$28))/SUM($O$22:$O$28) -> 0.417475652 | O25: 0.572649 | P25: 0.02479 | Q25: 14.47866001 | R25: 15.51498466 | S25: 22
B26: 20150114 | C26: 201500133 | D26: TXX OILS | E26: RE225 | F26: TU-80 | G26: 000662 | H26: Bucle | I26: 200 | J26: 210 | K26: 2100 | L26: 0 | M26: =1*0.2*K26*J26/1000000 -> 0.0882 | N26: =+O26*(16-SUM($O$22:$O$28)-SUM($L$22:$L$28)-SUM($M$22:$M$28))/SUM($O$22:$O$28) -> 0.796998972 | O26: 1.093239 | P26: 0.02479 | Q26: 15.51498466 | R26: 17.49342264 | S26: 22
B27: 20150114 | C27: 201500134 | D27: BHS Hoover | E27: RE220 | F27: TU-12 | G27: 003359 | H27: Bucle | I27: 900 | J27: 910 | K27: 800 | L27: 0.24 | M27: =1*0.2*K27*J27/1000000 -> 0.1456 | N27: =+O27*(16-SUM($O$22:$O$28)-SUM($L$22:$L$28)-SUM($M$22:$M$28))/SUM($O$22:$O$28) -> 1.315680843 | O27: 1.804712 | P27: 0.02479 | Q27: 17.49342264 | R27: =+Q27+SUM(L27:O27) -> 20.99941548 | S27: 22
B28: 20150114 | C28: BLANK | D28: BLANK | E28: BLANK | F28: BLANK | G28: BLANK | H28: Bucle | I28: 0 | J28: 0 | K28: 0 | L28: 0 | M28: 0 | N28: =16-SUM(L22:O27) -> 1.000584522 | O28: 0 | P28: 0 | Q28: 20.99941548 | R28: 22 | S28: =+S27 -> 22
B29: 20150112 | C29: 201500116 | D29: TXX OILS | E29: RE220 | F29: TU-12 | G29: 003359 | H29: Relle | I29: 450 | J29: 455 | K29: 500 | L29: 0.2 | M29: =1*0.2*K29*J29/1000000 -> 0.0455 | N29: =+O29*(16-SUM($O$29:$O$32)-SUM($L$29:$L$32)-SUM($M$29:$M$32))/SUM($O$29:$O$32) -> 0.5725555556 | O29: =1*(P29*J29*K29/10000) -> 1.1375 | P29: 0.05 | Q29: 6 | R29: 7.955555556 | S29: 14
B30: 20150112 | C30: 201500119 | D30: ALMACÉN | E30: RE220 | F30: TU-12 | G30: 003359 | H30: Relle | I30: 3500 | J30: 3505 | K30: 500 | L30: 0 | M30: =1*0.2*K30*J30/1000000 -> 0.3505 | N30: =+O30*(16-SUM($O$29:$O$32)-SUM($L$29:$L$32)-SUM($M$29:$M$32))/SUM($O$29:$O$32) -> 4.410565324 | O30: 8.7625 | P30: 0.05 | Q30: =+R29 -> 7.955555556 | R30: 21.47912088 | S30: 14
B31: 20150112 | C31: 201500120 | D31: ALMACÉN | E31: RE220 | F31: TU-12 | G31: 003359 | H31: Relle | I31: 3500 | J31: =3510-J30 -> 5 | K31: 500 | L31: 0 | M31: =1*0.2*K31*J31/1000000 -> 0.0005 | N31: 0.006291819292 | O31: 0.0125 | P31: 0.05 | Q31: =+R30 -> 21.47912088 | R31: =+Q31+SUM(L31:O31) -> 21.4984127 | S31: 22
B32: 20150112 | C32: 201500121 | D32: BHS Hoover | E32: RE220 | F32: TU-12 | G32: 003359 | H32: Relle | I32: 120 | J32: 130 | K32: 500 | L32: 0 | M32: =1*0.2*K32*J32/1000000 -> 0.013 | N32: 0.1635873016 | O32: 0.325 | P32: 0.05 | Q32: =+R31 -> 21.4984127 | R32: 22 | S32: 22
B33: 20150113 | C33: 201500123 | D33: BHS Hoover | E33: RE225 | F33: TU-80 | G33: 000428 | H33: Relle | I33: 825 | J33: 826 | K33: 493 | L33: =1*0.45 -> 0.45 | M33: =1*0.1*K33*J33/1000000 -> 0.0407218 | N33: =+O33*(16-SUM($O$33:$O$36)-SUM($L$33:$L$36)-SUM($M$33:$M$36))/SUM($O$33:$O$36) -> 0.1470803517 | O33: 2.443308 | P33: 0.06 | Q33: 6 | R33: 9.081110152 | S33: =+Q33+8 -> 14
B34: 20150113 | C34: 201500124 | D34: ASOLATE, S.A. | E34: RE225 | F34: TU-80 | G34: 000428 | H34: Relle | I34: 900 | J34: 915 | K34: 493 | L34: 0 | M34: =1*0.2*K34*J34/1000000 -> 0.090219 | N34: =+O34*(16-SUM($O$33:$O$36)-SUM($L$33:$L$36)-SUM($M$33:$M$36))/SUM($O$33:$O$36) -> 0.1629279925 | O34: 2.70657 | P34: 0.06 | Q34: =+R33 -> 9.081110152 | R34: 12.04082714 | S34: =+S33 -> 14
B35: 20150113 | C35: 201500125 | D35: TVP France | E35: RE225 | F35: TU-80 | G35: 000428 | H35: Relle | I35: 1800 | J35: 1800 | K35: 493 | L35: 0 | M35: =1*0.2*K35*J35/1000000 -> 0.17748 | N35: =+O35*(16-SUM($O$33:$O$36)-SUM($L$33:$L$36)-SUM($M$33:$M$36))/SUM($O$33:$O$36) -> 0.3205140837 | O35: 5.3244 | P35: 0.06 | Q35: =+R34 -> 12.04082714 | R35: 17.86322123 | S35: 22
B36: 20150113 | C36: 201500122 | D36: BHS Hoover | E36: RE220 | F36: TU-80 | G36: 000045 | H36: Relle | I36: 1200 | J36: 370 | K36: 1970 | L36: 0.2 | M36: =1*0.1*K36*J36/1000000 -> 0.07289 | N36: 0.2193887721 | O36: 3.6445 | P36: 0.05 | Q36: =+R35 -> 17.86322123 | R36: 22 | S36: 22
B37: 20150114 | C37: 201500122 | D37: BHS Hoover | E37: RE220 | F37: TU-80 | G37: 000045 | H37: Relle | I37: 1200 | J37: =1210-J36 -> 840 | K37: 1970 | L37: 0.2 | M37: =1*0.1*K37*J37/1000000 -> 0.16548 | N37: =+O37*(16-SUM($O$37:$O$38)-SUM($L$37:$L$38)-SUM($M$37:$M$38))/SUM($O$37:$O$38) -> 0.40852 | O37: 8.274 | P37: 0.05 | Q37: 6 | R37: 15.048 | S37: 14
B38: 20150114 | C38: 201500129 | D38: CALORIE IT, S.L.U. | E38: RE220 | F38: TU-80 | G38: 000045 | H38: Relle | I38: 650 | J38: 660 | K38: 1970 | L38: 0 | M38: =1*0.1*K38*J38/1000000 -> 0.13002 | N38: =+O38*(16-SUM($O$37:$O$38)-SUM($L$37:$L$38)-SUM($M$37:$M$38))/SUM($O$37:$O$38) -> 0.32098 | O38: 6.501 | P38: 0.05 | Q38: =+R37 -> 15.048 | R38: 22 | S38: 22
B39: 20150115 | C39: 201500126 | D39: BHS Hoover | E39: RE220 | F39: TU-12 | G39: 003359 | H39: Relle | I39: 50 | J39: 52 | K39: 800 | L39: 0.2 | M39: =1*0.2*K39*J39/1000000 -> 0.00832 | N39: =+O39*(16-SUM($O$39:$O$42)-SUM($L$39:$L$42)-SUM($M$39:$M$42))/SUM($O$39:$O$42) -> 0.02661266797 | O39: 0.2496 | P39: 0.06 | Q39: 6 | R39: 6.484532668 | S39: 14
B40: 20150115 | C40: 201500134 | D40: BHS Hoover | E40: RE220 | F40: TU-12 | G40: 003359 | H40: Relle | I40: 900 | J40: 910 | K40: 800 | L40: 0 | M40: 0.1 | N40: =+O40*(16-SUM($O$39:$O$42)-SUM($L$39:$L$42)-SUM($M$39:$M$42))/SUM($O$39:$O$42) -> 0.4657216896 | O40: 4.368 | P40: 0.06 | Q40: =+R39 -> 6.484532668 | R40: 11.41825436 | S40: =+S39 -> 14
B41: 20150115 | C41: 201500123 | D41: BHS Hoover | E41: RE225 | F41: TU-80 | G41: 000428 | H41: Relle | I41: 825 | J41: 835 | K41: 493 | L41: =1*0.45 -> 0.45 | M41: =1*0.1*K41*J41/1000000 -> 0.0411655 | N41: =+O41*(16-SUM($O$39:$O$42)-SUM($L$39:$L$42)-SUM($M$39:$M$42))/SUM($O$39:$O$42) -> 0.2633470633 | O41: 2.46993 | P41: 0.06 | Q41: =+R40 -> 11.41825436 | R41: =+Q41+SUM(L41:O41) -> 14.64269692 | S41: =+Q41+8 -> 19.41825436
B42: 20150115 | C42: 201500127 | D42: NOVANTIA, S.A. | E42: RE225 | F42: TU-80 | G42: 000012 | H42: Relle | I42: 2450 | J42: 1635 | K42: 800 | L42: 0 | M42: 0.12 | N42: 0.6973030791 | O42: 6.54 | P42: 0.05 | Q42: =+R41 -> 14.64269692 | R42: 22 | S42: 22
B43: 20150116 | C43: 201500127 | D43: NOVANTIA, S.A. | E43: RE225 | F43: TU-80 | G43: 000012 | H43: Relle | I43: 2450 | J43: 815 | K43: 800 | L43: 0.45 | M43: =1*0.2*K43*J43/1000000 -> 0.1304 | N43: =+O43*(16-SUM($O$43:$O$48)-SUM($L$43:$L$48)-SUM($M$43:$M$48))/SUM($O$43:$O$48) -> 0.408962938 | O43: 3.26 | P43: 0.05 | Q43: 6 | R43: 10.24936294 | S43: 14
B44: 20150116 | C44: 201500128 | D44: CALORIE IT, S.L.U. | E44: RE225 | F44: TU-80 | G44: 000012 | H44: Relle | I44: 40 | J44: 40 | K44: 800 | L44: 0 | M44: 0.0064 | N44: =+O44*(16-SUM($O$43:$O$48)-SUM($L$43:$L$48)-SUM($M$43:$M$48))/SUM($O$43:$O$48) -> 0.02007180064 | O44: 0.16 | P44: 0.05 | Q44: =+R43 -> 10.24936294 | R44: 10.43583474 | S44: 14
B45: 20150116 | C45: 201500130 | D45: FUGOR, S.A. | E45: RE225 | F45: TU-80 | G45: 000662 | H45: Relle | I45: 40 | J45: 40 | K45: 2100 | L45: 0 | M45: 0.0168 | N45: 0.05268847667 | O45: 0.42 | P45: 0.05 | Q45: =+R44 -> 10.43583474 | R45: 10.92532322 | S45: 14
B46: 20150116 | C46: 201500131 | D46: ASTUR INDUSTRIAL, S.A. | E46: RE225 | F46: TU-80 | G46: 000662 | H46: Relle | I46: 600 | J46: 600 | K46: 2100 | L46: 0 | M46: 0.252 | N46: 0.7903271501 | O46: 6.3 | P46: 0.05 | Q46: =+R45 -> 10.92532322 | R46: 18.26765037 | S46: 22
B47: 20150116 | C47: 201500132 | D47: TCC SHIPS, CORP. | E47: RE225 | F47: TU-80 | G47: 000662 | H47: Relle | I47: 100 | J47: 105 | K47: 2100 | L47: 0 | M47: 0.0441 | N47: 0.1383072513 | O47: 1.1025 | P47: 0.05 | Q47: =+R46 -> 18.26765037 | R47: 19.55255762 | S47: 22
B48: 20150116 | C48: 201500133 | D48: TXX OILS | E48: RE225 | F48: TU-80 | G48: 000662 | H48: Relle | I48: 200 | J48: 200 | K48: 2100 | L48: 0 | M48: 0.084 | N48: 0.2634423834 | O48: 2.1 | P48: 0.05 | Q48: =+R47 -> 19.55255762 | R48: 22 | S48: 22
B49: 20150112 | C49: 201500116 | D49: TXX OILS | E49: RE220 | F49: TU-12 | G49: 003359 | H49: Extru | I49: 450 | J49: 455 | K49: 500 | L49: 0 | M49: =1*0*K49*J49/1000000 -> 0 | N49: =+O49*(16-SUM($O$49:$O$50)-SUM($L$49:$L$50)-SUM($M$49:$M$50))/SUM($O$49:$O$50) -> 1.613207965 | O49: 0.2275 | P49: 0.01 | Q49: =+R29 -> 7.955555556 | R49: =+Q49+O49 -> 8.183055556 | S49: 14 | U49: =+R49-Q49 -> 0.2275
B50: 20150112 | C50: 201500119 | D50: ALMACÉN | E50: RE220 | F50: TU-12 | G50: 003359 | H50: Extru | I50: 3500 | J50: 3500 | K50: 500 | L50: 0 | M50: 0 | N50: =+O50*(16-SUM($O$49:$O$50)-SUM($L$49:$L$50)-SUM($M$49:$M$50))/SUM($O$49:$O$50) -> 12.40929204 | O50: 1.75 | P50: 0.01 | Q50: =+R30 -> 21.47912088 | R50: 23.22912088 | S50: 22
B51: 20150113 | C51: 201500121 | D51: BHS Hoover | E51: RE220 | F51: TU-12 | G51: 003359 | H51: Extru | I51: 120 | J51: 130 | K51: 500 | L51: 0 | M51: 0 | N51: =+O51*(16-SUM($O$51:$O$54)-SUM($L$51:$L$54)-SUM($M$51:$M$54))/SUM($O$51:$O$54) -> 0.5115570783 | O51: 0.065 | P51: 0.01 | Q51: =+Q33 -> 6 | R51: 6.065 | S51: 14
B52: 20150113 | C52: 201500123 | D52: BHS Hoover | E52: RE225 | F52: TU-80 | G52: 000428 | H52: Extru | I52: 825 | J52: 825 | K52: 493 | L52: 0 | M52: 0 | N52: =+O52*(16-SUM($O$51:$O$54)-SUM($L$51:$L$54)-SUM($M$51:$M$54))/SUM($O$51:$O$54) -> 3.200970041 | O52: 0.406725 | P52: 0.01 | Q52: =+R33 -> 9.081110152 | R52: 9.487835152 | S52: 14
B53: 20150113 | C53: 201500124 | D53: ASOLATE, S.A. | E53: RE225 | F53: TU-80 | G53: 000428 | H53: Extru | I53: 900 | J53: 902 | K53: 493 | L53: 0 | M53: 0 | N53: 3.499727245 | O53: 0.444686 | P53: 0.01 | Q53: =+R34 -> 12.04082714 | R53: 12.48551314 | S53: 14
B54: 20150113 | C54: 201500125 | D54: TVP France | E54: RE225 | F54: TU-80 | G54: 000428 | H54: Extru | I54: 1800 | J54: 1800 | K54: 493 | L54: 0 | M54: 0 | N54: 6.983934635 | O54: 0.8874 | P54: 0.01 | Q54: =+R35 -> 17.86322123 | R54: 18.75062123 | S54: 22
B55: 20150114 | C55: 201500122 | D55: BHS Hoover | E55: RE220 | F55: TU-80 | G55: 000045 | H55: Extru | I55: 1200 | J55: 600 | K55: 1970 | L55: 0 | M55: 0 | N55: =+O55*(16-SUM($O$55:$O$56)-SUM($L$55:$L$56)-SUM($M$55:$M$56))/SUM($O$55:$O$56) -> 6.818 | O55: 1.182 | P55: 0.01 | Q55: =+Q37 -> 6 | R55: 7.182 | S55: 14
B56: 20150114 | C56: 201500122 | D56: BHS Hoover | E56: RE220 | F56: TU-80 | G56: 000045 | H56: Extru | I56: 1200 | J56: 600 | K56: 1970 | L56: 0 | M56: 0 | N56: =+O56*(16-SUM($O$55:$O$56)-SUM($L$55:$L$56)-SUM($M$55:$M$56))/SUM($O$55:$O$56) -> 6.818 | O56: 1.182 | P56: 0.01 | Q56: =+R37 -> 15.048 | R56: 16.23 | S56: 22
B57: 20150115 | C57: 201500129 | D57: CALORIE IT, S.L.U. | E57: RE220 | F57: TU-80 | G57: 000045 | H57: Extru | I57: 650 | J57: 655 | K57: 1970 | L57: 0 | M57: 0 | N57: =+O57*(16-SUM($O$57:$O$59)-SUM($L$57:$L$59)-SUM($M$57:$M$59))/SUM($O$57:$O$59) -> 8.747622529 | O57: 1.29035 | P57: 0.01 | Q57: 6 | R57: 7.29035 | S57: 14
B58: 20150115 | C58: 201500126 | D58: BHS Hoover | E58: RE220 | F58: TU-12 | G58: 003359 | H58: Extru | I58: 50 | J58: 48 | K58: 800 | L58: 0 | M58: 0 | N58: =+O58*(16-SUM($O$57:$O$59)-SUM($L$57:$L$59)-SUM($M$57:$M$59))/SUM($O$57:$O$59) -> 0.2603237146 | O58: 0.0384 | P58: 0.01 | Q58: =+R39 -> 6.484532668 | R58: 6.522932668 | S58: 14
B59: 20150115 | C59: 201500134 | D59: BHS Hoover | E59: RE220 | F59: TU-12 | G59: 003359 | H59: Extru | I59: 900 | J59: 910 | K59: 800 | L59: 0 | M59: 0 | N59: =+O59*(16-SUM($O$57:$O$59)-SUM($L$57:$L$59)-SUM($M$57:$M$59))/SUM($O$57:$O$59) -> 4.935303756 | O59: 0.728 | P59: 0.01 | Q59: =+R40 -> 11.41825436 | R59: =+Q59+SUM(L59:O59) -> 17.08155811 | S59: 22
B60: 20150116 | C60: 201500127 | D60: NOVANTIA, S.A. | E60: RE225 | F60: TU-80 | G60: 000012 | H60: Extru | I60: 2450 | J60: 2450 | K60: 800 | L60: 0 | M60: 0 | N60: =+O60*(16-SUM($O$60:$O$64)-SUM($L$60:$L$64)-SUM($M$60:$M$64))/SUM($O$60:$O$64) -> 8.834474716 | O60: 1.96 | P60: 0.01 | Q60: 6 | R60: 16.79447472 | S60: 14
B61: 20150116 | C61: 201500128 | D61: CALORIE IT, S.L.U. | E61: RE225 | F61: TU-80 | G61: 000012 | H61: Extru | I61: 40 | J61: 40 | K61: 800 | L61: 0 | M61: 0 | N61: =+O61*(16-SUM($O$60:$O$64)-SUM($L$60:$L$64)-SUM($M$60:$M$64))/SUM($O$60:$O$64) -> 0.1442363219 | O61: 0.032 | P61: 0.01 | Q61: =+R60 -> 16.79447472 | R61: 16.97071104 | S61: 22
B62: 20150116 | C62: 201500123 | D62: BHS Hoover | E62: RE225 | F62: TU-80 | G62: 000428 | H62: Extru | I62: 825 | J62: 830 | K62: 493 | L62: 0 | M62: 0 | N62: =+O62*(16-SUM($O$60:$O$64)-SUM($L$60:$L$64)-SUM($M$60:$M$64))/SUM($O$60:$O$64) -> 1.844376892 | O62: 0.40919 | P62: 0.01 | Q62: =+R61 -> 16.97071104 | R62: =+Q62+O62 -> 17.37990104 | S62: 22
B63: 20150116 | C63: 201500130 | D63: FUGOR, S.A. | E63: RE225 | F63: TU-80 | G63: 000662 | H63: Extru | I63: 40 | J63: 40 | K63: 2100 | L63: 0 | M63: 0 | N63: =+O63*(16-SUM($O$60:$O$64)-SUM($L$60:$L$64)-SUM($M$60:$M$64))/SUM($O$60:$O$64) -> 0.378620345 | O63: 0.084 | P63: 0.01 | Q63: =+R61 -> 16.97071104 | R63: 17.43333138 | S63: 22
B64: 20150116 | C64: 201500131 | D64: ASTUR INDUSTRIAL, S.A. | E64: RE225 | F64: TU-80 | G64: 000662 | H64: Extru | I64: 600 | J64: 200 | K64: 2100 | L64: 0 | M64: 0 | N64: =+O64*(16-SUM($O$60:$O$64)-SUM($L$60:$L$64)-SUM($M$60:$M$64))/SUM($O$60:$O$64) -> 1.893101725 | O64: 0.42 | P64: 0.01 | Q64: =+R63 -> 17.43333138 | R64: =+Q64+SUM(L64:O64) -> 19.74643311 | S64: 22
B65: 20150117 | C65: 201500131 | D65: ASTUR INDUSTRIAL, S.A. | E65: RE225 | F65: TU-80 | G65: 000662 | H65: Extru | I65: 600 | J65: 395 | K65: 2100 | L65: 0 | M65: 0 | N65: =+O65*(8-SUM($O$65:$O$67)-SUM($L$65:$L$67)-SUM($M$65:$M$67))/SUM($O$65:$O$67) -> 3.71726259 | O65: 0.8295 | P65: 0.01 | Q65: 6 | R65: =+Q65+SUM(L65:O65) -> 10.54676259 | S65: 14
B66: 20150117 | C66: 201500132 | D66: TCC SHIPS, CORP. | E66: RE225 | F66: TU-80 | G66: 000662 | H66: Extru | I66: 100 | J66: 100 | K66: 2100 | L66: 0 | M66: 0 | N66: =+O66*(8-SUM($O$65:$O$67)-SUM($L$65:$L$67)-SUM($M$65:$M$67))/SUM($O$65:$O$67) -> 0.9410791367 | O66: 0.21 | P66: 0.01 | Q66: =+R65 -> 10.54676259 | R66: 11.69784173 | S66: 14
B67: 20150117 | C67: 201500133 | D67: TXX OILS | E67: RE225 | F67: TU-80 | G67: 000662 | H67: Extru | I67: 200 | J67: 200 | K67: 2100 | L67: 0 | M67: 0 | N67: 1.882158273 | O67: 0.42 | P67: 0.01 | Q67: =+R66 -> 11.69784173 | R67: 14 | S67: 14

Sheet FichasTecnicas
B2: REDSYSTEMCE, S.L.
R3: Identificador de materiales
A4: =TODAY() -> 2015-01-29 | E4: Lote | F4: Consumo de materiales
E5: =+PRODUCCION!C6 -> 201500133 | F5: =+PRODUCCION!G6 -> 000662 | G5: =+PRODUCCION!J6 -> 200 | I5: =+PRODUCCION!H6 -> Extru | R5: Fase | S5: Bucle | T5: Bucle | U5: Bucle | V5: Bucle | W5: Bucle | X5: Bucle | Y5: Bucle | Z5: Bucle | AA5: Bucle | AB5: Bucle | AC5: Relle | AD5: Relle | AE5: Bucle/Relle | AF5: Bucle/Relle | AG5: Extru | AH5: Extru | AI5: Relle | AJ5: Relle | AK5: Bucle | AL5: Bucle | AM5: Bucle | AN5: Bucle | AO5: Bucle | AP5: Bucle | AQ5: Bucle | AR5: Bucle
A6: Datos | F6: unidades | G6: euros/unid | I6: Buscador | S6: Consumo | T6: Coste | U6: Consumo | V6: Coste | W6: Consumo | X6: Coste | Y6: Consumo | Z6: Coste | AA6: Consumo | AB6: Coste | AC6: Consumo | AD6: Coste | AE6: Consumo | AF6: Coste | AG6: Consumo | AH6: Coste | AI6: Consumo | AJ6: Coste | AK6: Consumo | AL6: Coste | AM6: Consumo | AN6: Coste | AO6: Consumo | AP6: Coste | AQ6: Consumo | AR6: Coste
A7: x | B7: ResClav02 | C7: ResClav03 | D7: Linea | E7: Material | F7: Cantidad | G7: Importe | I7: ResClav01 | J7: ResClav02 | K7: ResClav03 | L7: Linea | M7: Material | N7: Cantidad | O7: Importe | Q7: Consumo | R7: Coste | S7: HILO 80/20 0,25 | T7: HILO 80/20 0,25 | U7: HILO 80/20 0,33 | V7: HILO 80/20 0,33 | W7: HILO 80/20 0,35 | X7: HILO 80/20 0,35 | Y7: HILO 80/20 0,40 | Z7: HILO 80/20 0,40 | AA7: HILO 80/20 0,55 | AB7: HILO 80/20 0,55 | AC7: MAGNES ALFA 4B | AD7: MAGNES ALFA 4B | AE7: TAPON PLÁSTICO 9,5 6666 | AF7: TAPON PLÁSTICO 9,5 6666 | AG7: TFM 444 Z33 | AH7: TFM 444 Z33 | AI7: TUBO 333 9,5/45 | AJ7: TUBO 333 9,5/45 | AK7: VARILLA A 3/65 11 | AL7: VARILLA A 3/65 11 | AM7: VARILLA A 3/65 22 | AN7: VARILLA A 3/65 22 | AO7: VARILLA B 3/65 11 | AP7: VARILLA B 3/65 11 | AQ7: VARILLA B 3/65 22 | AR7: VARILLA B 3/65 22
A8: RE225 | B8: TU80 | C8: 000012 | D8: 2 | E8: HILO 80/20 0,33 | F8: 7.9 | G8: 0.017 | I8: =IF($C8=$F$5,A8,) -> 0 | J8: =IF($C8=$F$5,B8,) -> 0 | K8: =IF($C8=$F$5,C8,) -> 0 | L8: =IF($C8=$F$5,D8,) -> 0 | M8: =IF($C8=$F$5,E8,) -> 0 | N8: =IF($C8=$F$5,F8,) -> 0 | O8: =IF($C8=$F$5,G8,) -> 0 | Q8: =+N8*$G$5 -> 0 | R8: =+Q8*O8 -> 0 | S8: =+IF(AND(S$5=$I$5,S$7=$E8),$Q8,0) -> 0 | T8: =+IF(AND(T$5=$I$5,T$7=$E8),$R8,0) -> 0 | U8: =+IF(AND(U$5=$I$5,U$7=$E8),$Q8,0) -> 0 | V8: =+IF(AND(V$5=$I$5,V$7=$E8),$R8,0) -> 0 | W8: 0 | X8: =+IF(AND(X$5=$I$5,X$7=$E8),$R8,0) -> 0 | Y8: 0 | Z8: =+IF(AND(Z$5=$I$5,Z$7=$E8),$R8,0) -> 0 | AA8: 0 | AB8: =+IF(AND(AB$5=$I$5,AB$7=$E8),$R8,0) -> 0 | AC8: 0 | AD8: =+IF(AND(AD$5=$I$5,AD$7=$E8),$R8,0) -> 0 | AE8: =+IF(AND($I$5<>"Extru",AE$7=$E8),$Q8,0) -> 0 | AF8: =+IF(AND($I$5<>"Extru",AF$7=$E8),$R8,0) -> 0 | AG8: 0 | AH8: =+IF(AND(AH$5=$I$5,AH$7=$E8),$R8,0) -> 0 | AI8: 0 | AJ8: =+IF(AND(AJ$5=$I$5,AJ$7=$E8),$R8,0) -> 0 | AK8: =+IF(AND(AK$5=$I$5,AK$7=$E8),$Q8,0) -> 0 | AL8: =+IF(AND(AL$5=$I$5,AL$7=$E8),$R8,0) -> 0 | AM8: 0 | AN8: =+IF(AND(AN$5=$I$5,AN$7=$E8),$R8,0) -> 0 | AO8: 0 | AP8: =+IF(AND(AP$5=$I$5,AP$7=$E8),$R8,0) -> 0 | AQ8: 0 | AR8: =+IF(AND(AR$5=$I$5,AR$7=$E8),$R8,0) -> 0
A9: RE225 | B9: TU80 | C9: 000012 | D9: 17 | E9: MAGNES ALFA 4B | F9: 0.6 | G9: 0.55 | I9: 0 | J9: 0 | K9: 0 | L9: 0 | M9: 0 | N9: 0 | O9: 0 | Q9: 0 | R9: 0 | S9: =+IF(AND(S$5=$I$5,S$7=$E9),$Q9,0) -> 0 | T9: =+IF(AND(T$5=$I$5,T$7=$E9),$R9,0) -> 0 | U9: 0 | V9: 0 | W9: 0 | X9: 0 | Y9: 0 | Z9: 0 | AA9: 0 | AB9: 0 | AC9: 0 | AD9: 0 | AE9: =+IF(AND($I$5<>"Extru",AE$7=$E9),$Q9,0) -> 0 | AF9: =+IF(AND($I$5<>"Extru",AF$7=$E9),$R9,0) -> 0 | AG9: 0 | AH9: =+IF(AND(AH$5=$I$5,AH$7=$E9),$R9,0) -> 0 | AI9: 0 | AJ9: =+IF(AND(AJ$5=$I$5,AJ$7=$E9),$R9,0) -> 0 | AK9: 0 | AL9: =+IF(AND(AL$5=$I$5,AL$7=$E9),$R9,0) -> 0 | AM9: 0 | AN9: =+IF(AND(AN$5=$I$5,AN$7=$E9),$R9,0) -> 0 | AO9: 0 | AP9: =+IF(AND(AP$5=$I$5,AP$7=$E9),$R9,0) -> 0 | AQ9: 0 | AR9: =+IF(AND(AR$5=$I$5,AR$7=$E9),$R9,0) -> 0
A10: RE225 | B10: TU80 | C10: 000012 | D10: 7 | E10: TAPON PLÁSTICO 9,5 6666 | F10: 1 | G10: 0.004 | I10: 0 | J10: 0 | K10: 0 | L10: 0 | M10: 0 | N10: 0 | O10: 0 | Q10: 0 | R10: 0 | S10: 0 | T10: 0 | U10: 0 | V10: 0 | W10: 0 | X10: 0 | Y10: 0 | Z10: 0 | AA10: 0 | AB10: 0 | AC10: 0 | AD10: 0 | AE10: 0 | AF10: 0 | AG10: 0 | AH10: 0 | AI10: 0 | AJ10: 0 | AK10: 0 | AL10: 0 | AM10: 0 | AN10: 0 | AO10: 0 | AP10: 0 | AQ10: 0 | AR10: 0
A11: RE225 | B11: TU80 | C11: 000012 | D11: 9 | E11: TFM 444 Z33 | F11: 3 | G11: 0.04 | I11: 0 | J11: 0 | K11: 0 | L11: 0 | M11: 0 | N11: 0 | O11: 0 | Q11: 0 | R11: 0 | S11: 0 | T11: 0 | U11: 0 | V11: 0 | W11: 0 | X11: 0 | Y11: 0 | Z11: 0 | AA11: 0 | AB11: 0 | AC11: 0 | AD11: 0 | AE11: 0 | AF11: 0 | AG11: 0 | AH11: 0 | AI11: 0 | AJ11: 0 | AK11: 0 | AL11: 0 | AM11: 0 | AN11: 0 | AO11: 0 | AP11: 0 | AQ11: 0 | AR11: 0
A12: RE225 | B12: TU80 | C12: 000012 | D12: 1 | E12: TUBO 333 9,5/45 | F12: 1.459 | G12: 0.56 | I12: 0 | J12: 0 | K12: 0 | L12: 0 | M12: 0 | N12: 0 | O12: 0 | Q12: 0 | R12: 0 | S12: 0 | T12: 0 | U12: 0 | V12: 0 | W12: 0 | X12: 0 | Y12: 0 | Z12: 0 | AA12: 0 | AB12: 0 | AC12: 0 | AD12: 0 | AE12: 0 | AF12: 0 | AG12: 0 | AH12: 0 | AI12: 0 | AJ12: 0 | AK12: 0 | AL12: 0 | AM12: 0 | AN12: 0 | AO12: 0 | AP12: 0 | AQ12: 0 | AR12: 0
A13: RE225 | B13: TU80 | C13: 000012 | D13: 14 | E13: VARILLA A 3/65 22 | F13: 1 | G13: 0.03 | I13: 0 | J13: 0 | K13: 0 | L13: 0 | M13: 0 | N13: 0 | O13: 0 | Q13: 0 | R13: 0 | S13: 0 | T13: 0 | U13: 0 | V13: 0 | W13: 0 | X13: 0 | Y13: 0 | Z13: 0 | AA13: 0 | AB13: 0 | AC13: 0 | AD13: 0 | AE13: 0 | AF13: 0 | AG13: 0 | AH13: 0 | AI13: 0 | AJ13: 0 | AK13: 0 | AL13: 0 | AM13: 0 | AN13: 0 | AO13: 0 | AP13: 0 | AQ13: 0 | AR13: 0
A14: RE225 | B14: TU80 | C14: 000012 | D14: 15 | E14: VARILLA B 3/65 22 | F14: 1 | G14: 0.0319047619 | I14: 0 | J14: 0 | K14: 0 | L14: 0 | M14: 0 | N14: 0 | O14: 0 | Q14: 0 | R14: 0 | S14: 0 | T14: 0 | U14: 0 | V14: 0 | W14: 0 | X14: 0 | Y14: 0 | Z14: 0 | AA14: 0 | AB14: 0 | AC14: 0 | AD14: 0 | AE14: 0 | AF14: 0 | AG14: 0 | AH14: 0 | AI14: 0 | AJ14: 0 | AK14: 0 | AL14: 0 | AM14: 0 | AN14: 0 | AO14: 0 | AP14: 0 | AQ14: 0 | AR14: 0
A15: RE220 | B15: TU80 | C15: 000045 | D15: 15 | E15: HILO 80/20 0,55 | F15: 7.5 | G15: 0.06 | I15: 0 | J15: 0 | K15: 0 | L15: 0 | M15: 0 | N15: 0 | O15: 0 | Q15: 0 | R15: 0 | S15: 0 | T15: 0 | U15: 0 | V15: 0 | W15: 0 | X15: 0 | Y15: 0 | Z15: 0 | AA15: 0 | AB15: =+IF(AND(AB$5=$I$5,AB$7=$E15),$R15,0) -> 0 | AC15: 0 | AD15: 0 | AE15: 0 | AF15: 0 | AG15: 0 | AH15: 0 | AI15: 0 | AJ15: 0 | AK15: 0 | AL15: 0 | AM15: 0 | AN15: 0 | AO15: 0 | AP15: 0 | AQ15: 0 | AR15: 0
A16: RE220 | B16: TU80 | C16: 000045 | D16: 22 | E16: MAGNES ALFA 4B | F16: 0.5 | G16: 0.55 | I16: 0 | J16: 0 | K16: 0 | L16: 0 | M16: 0 | N16: 0 | O16: 0 | Q16: 0 | R16: 0 | S16: 0 | T16: 0 | U16: 0 | V16: 0 | W16: 0 | X16: 0 | Y16: 0 | Z16: 0 | AA16: 0 | AB16: 0 | AC16: 0 | AD16: 0 | AE16: 0 | AF16: 0 | AG16: 0 | AH16: 0 | AI16: 0 | AJ16: 0 | AK16: 0 | AL16: 0 | AM16: 0 | AN16: 0 | AO16: 0 | AP16: 0 | AQ16: 0 | AR16: 0
A17: RE220 | B17: TU80 | C17: 000045 | D17: 7 | E17: TAPON PLÁSTICO 9,5 6666 | F17: 1 | G17: 0.004 | I17: 0 | J17: 0 | K17: 0 | L17: 0 | M17: 0 | N17: 0 | O17: 0 | Q17: 0 | R17: 0 | S17: 0 | T17: 0 | U17: 0 | V17: 0 | W17: 0 | X17: 0 | Y17: 0 | Z17: 0 | AA17: 0 | AB17: 0 | AC17: 0 | AD17: 0 | AE17: 0 | AF17: 0 | AG17: 0 | AH17: 0 | AI17: 0 | AJ17: 0 | AK17: 0 | AL17: 0 | AM17: 0 | AN17: 0 | AO17: 0 | AP17: 0 | AQ17: 0 | AR17: 0
A18: RE220 | B18: TU80 | C18: 000045 | D18: 9 | E18: TFM 444 Z33 | F18: 3 | G18: 0.04 | I18: 0 | J18: 0 | K18: 0 | L18: 0 | M18: 0 | N18: 0 | O18: 0 | Q18: 0 | R18: 0 | S18: 0 | T18: 0 | U18: 0 | V18: 0 | W18: 0 | X18: 0 | Y18: 0 | Z18: 0 | AA18: 0 | AB18: 0 | AC18: 0 | AD18: 0 | AE18: 0 | AF18: 0 | AG18: 0 | AH18: 0 | AI18: 0 | AJ18: 0 | AK18: 0 | AL18: 0 | AM18: 0 | AN18: 0 | AO18: 0 | AP18: 0 | AQ18: 0 | AR18: 0
A19: RE220 | B19: TU80 | C19: 000045 | D19: 1 | E19: TUBO 333 9,5/45 | F19: 1.73 | G19: 0.56 | I19: 0 | J19: 0 | K19: 0 | L19: 0 | M19: 0 | N19: 0 | O19: 0 | Q19: 0 | R19: 0 | S19: 0 | T19: 0 | U19: 0 | V19: 0 | W19: 0 | X19: 0 | Y19: 0 | Z19: 0 | AA19: 0 | AB19: 0 | AC19: 0 | AD19: 0 | AE19: 0 | AF19: 0 | AG19: 0 | AH19: 0 | AI19: 0 | AJ19: 0 | AK19: 0 | AL19: 0 | AM19: 0 | AN19: 0 | AO19: 0 | AP19: 0 | AQ19: 0 | AR19: 0
A20: RE220 | B20: TU80 | C20: 000045 | D20: 19 | E20: VARILLA A 3/65 11 | F20: 1 | G20: 0.06 | I20: 0 | J20: 0 | K20: 0 | L20: 0 | M20: 0 | N20: 0 | O20: 0 | Q20: 0 | R20: 0 | S20: 0 | T20: 0 | U20: 0 | V20: 0 | W20: 0 | X20: 0 | Y20: 0 | Z20: 0 | AA20: 0 | AB20: 0 | AC20: 0 | AD20: 0 | AE20: 0 | AF20: 0 | AG20: 0 | AH20: 0 | AI20: 0 | AJ20: 0 | AK20: 0 | AL20: 0 | AM20: 0 | AN20: 0 | AO20: 0 | AP20: 0 | AQ20: 0 | AR20: 0
A21: RE220 | B21: TU80 | C21: 000045 | D21: 20 | E21: VARILLA B 3/65 11 | F21: 1 | G21: 0.06 | I21: 0 | J21: 0 | K21: 0 | L21: 0 | M21: 0 | N21: 0 | O21: 0 | Q21: 0 | R21: 0 | S21: 0 | T21: 0 | U21: 0 | V21: 0 | W21: 0 | X21: 0 | Y21: 0 | Z21: 0 | AA21: 0 | AB21: 0 | AC21: 0 | AD21: 0 | AE21: 0 | AF21: 0 | AG21: 0 | AH21: 0 | AI21: 0 | AJ21: 0 | AK21: 0 | AL21: 0 | AM21: 0 | AN21: 0 | AO21: 0 | AP21: 0 | AQ21: 0 | AR21: 0
A22: RE225 | B22: TU80 | C22: 000428 | D22: 2 | E22: HILO 80/20 0,40 | F22: 6.4 | G22: 0.03 | I22: 0 | J22: 0 | K22: 0 | L22: 0 | M22: 0 | N22: 0 | O22: 0 | Q22: 0 | R22: 0 | S22: 0 | T22: 0 | U22: 0 | V22: 0 | W22: 0 | X22: 0 | Y22: 0 | Z22: 0 | AA22: 0 | AB22: 0 | AC22: 0 | AD22: 0 | AE22: 0 | AF22: 0 | AG22: 0 | AH22: 0 | AI22: 0 | AJ22: 0 | AK22: 0 | AL22: 0 | AM22: 0 | AN22: 0 | AO22: 0 | AP22: 0 | AQ22: 0 | AR22: 0
A23: RE225 | B23: TU80 | C23: 000428 | D23: 20 | E23: MAGNES ALFA 4B | F23: 0.6 | G23: 0.55 | I23: 0 | J23: 0 | K23: 0 | L23: 0 | M23: 0 | N23: 0 | O23: 0 | Q23: 0 | R23: 0 | S23: 0 | T23: 0 | U23: 0 | V23: 0 | W23: 0 | X23: 0 | Y23: 0 | Z23: 0 | AA23: 0 | AB23: 0 | AC23: 0 | AD23: 0 | AE23: 0 | AF23: 0 | AG23: 0 | AH23: 0 | AI23: =+IF(AND(AI$5=$I$5,AI$7=$E23),$Q23,0) -> 0 | AJ23: 0 | AK23: 0 | AL23: 0 | AM23: 0 | AN23: 0 | AO23: 0 | AP23: 0 | AQ23: 0 | AR23: 0
A24: RE225 | B24: TU80 | C24: 000428 | D24: 9 | E24: TAPON PLÁSTICO 9,5 6666 | F24: 1 | G24: 0.004 | I24: 0 | J24: 0 | K24: 0 | L24: 0 | M24: 0 | N24: 0 | O24: 0 | Q24: 0 | R24: 0 | S24: 0 | T24: 0 | U24: 0 | V24: 0 | W24: 0 | X24: 0 | Y24: 0 | Z24: 0 | AA24: 0 | AB24: 0 | AC24: 0 | AD24: 0 | AE24: 0 | AF24: 0 | AG24: 0 | AH24: 0 | AI24: 0 | AJ24: 0 | AK24: 0 | AL24: 0 | AM24: 0 | AN24: 0 | AO24: 0 | AP24: 0 | AQ24: 0 | AR24: 0
A25: RE225 | B25: TU80 | C25: 000428 | D25: 11 | E25: TFM 444 Z33 | F25: 3 | G25: 0.04 | I25: 0 | J25: 0 | K25: 0 | L25: 0 | M25: 0 | N25: 0 | O25: 0 | Q25: 0 | R25: 0 | S25: =+IF(AND(S$5=$I$5,S$7=$E25),$Q25,0) -> 0 | T25: 0 | U25: 0 | V25: 0 | W25: 0 | X25: 0 | Y25: 0 | Z25: 0 | AA25: 0 | AB25: 0 | AC25: 0 | AD25: 0 | AE25: 0 | AF25: 0 | AG25: 0 | AH25: 0 | AI25: 0 | AJ25: 0 | AK25: 0 | AL25: 0 | AM25: 0 | AN25: 0 | AO25: 0 | AP25: 0 | AQ25: 0 | AR25: 0
A26: RE225 | B26: TU80 | C26: 000428 | D26: 1 | E26: TUBO 333 9,5/45 | F26: 1.188 | G26: 0.56 | I26: 0 | J26: 0 | K26: 0 | L26: 0 | M26: 0 | N26: 0 | O26: 0 | Q26: 0 | R26: 0 | S26: 0 | T26: 0 | U26: 0 | V26: 0 | W26: 0 | X26: 0 | Y26: 0 | Z26: 0 | AA26: 0 | AB26: 0 | AC26: 0 | AD26: 0 | AE26: 0 | AF26: 0 | AG26: 0 | AH26: 0 | AI26: 0 | AJ26: 0 | AK26: 0 | AL26: 0 | AM26: 0 | AN26: 0 | AO26: 0 | AP26: 0 | AQ26: 0 | AR26: 0
A27: RE225 | B27: TU80 | C27: 000428 | D27: 17 | E27: VARILLA A 3/65 11 | F27: 1 | G27: 0.06 | I27: 0 | J27: 0 | K27: 0 | L27: 0 | M27: 0 | N27: 0 | O27: 0 | Q27: 0 | R27: 0 | S27: 0 | T27: 0 | U27: 0 | V27: 0 | W27: 0 | X27: 0 | Y27: 0 | Z27: 0 | AA27: 0 | AB27: 0 | AC27: 0 | AD27: 0 | AE27: 0 | AF27: 0 | AG27: 0 | AH27: 0 | AI27: 0 | AJ27: 0 | AK27: 0 | AL27: 0 | AM27: 0 | AN27: 0 | AO27: 0 | AP27: 0 | AQ27: 0 | AR27: 0
A28: RE225 | B28: TU80 | C28: 000428 | D28: 18 | E28: VARILLA B 3/65 11 | F28: 1 | G28: 0.06 | I28: 0 | J28: 0 | K28: 0 | L28: 0 | M28: 0 | N28: 0 | O28: 0 | Q28: 0 | R28: 0 | S28: 0 | T28: 0 | U28: 0 | V28: 0 | W28: 0 | X28: 0 | Y28: 0 | Z28: 0 | AA28: 0 | AB28: 0 | AC28: 0 | AD28: 0 | AE28: 0 | AF28: 0 | AG28: 0 | AH28: 0 | AI28: 0 | AJ28: 0 | AK28: 0 | AL28: 0 | AM28: 0 | AN28: 0 | AO28: 0 | AP28: 0 | AQ28: 0 | AR28: 0
A29: RE225 | B29: TU80 | C29: 000662 | D29: 2 | E29: HILO 80/20 0,35 | F29: 7.1 | G29: 0.02 | I29: RE225 | J29: TU80 | K29: 000662 | L29: 2 | M29: HILO 80/20 0,35 | N29: 7.1 | O29: 0.02 | Q29: =+N29*$G$5 -> 1420 | R29: =+Q29*O29 -> 28.4 | S29: 0 | T29: 0 | U29: 0 | V29: 0 | W29: 0 | X29: 0 | Y29: 0 | Z29: 0 | AA29: 0 | AB29: 0 | AC29: 0 | AD29: 0 | AE29: 0 | AF29: 0 | AG29: 0 | AH29: 0 | AI29: 0 | AJ29: 0 | AK29: 0 | AL29: 0 | AM29: 0 | AN29: 0 | AO29: 0 | AP29: 0 | AQ29: 0 | AR29: 0
A30: RE225 | B30: TU80 | C30: 000662 | D30: 14 | E30: MAGNES ALFA 4B | F30: 0.5 | G30: 0.55 | I30: RE225 | J30: TU80 | K30: 000662 | L30: 14 | M30: MAGNES ALFA 4B | N30: 0.5 | O30: 0.55 | Q30: 100 | R30: 55 | S30: 0 | T30: 0 | U30: 0 | V30: 0 | W30: 0 | X30: 0 | Y30: 0 | Z30: 0 | AA30: 0 | AB30: 0 | AC30: 0 | AD30: 0 | AE30: 0 | AF30: 0 | AG30: 0 | AH30: 0 | AI30: 0 | AJ30: 0 | AK30: 0 | AL30: 0 | AM30: 0 | AN30: 0 | AO30: 0 | AP30: 0 | AQ30: 0 | AR30: 0
A31: RE225 | B31: TU80 | C31: 000662 | D31: 7 | E31: TAPON PLÁSTICO 9,5 6666 | F31: 1 | G31: 0.004 | I31: RE225 | J31: TU80 | K31: 000662 | L31: 7 | M31: TAPON PLÁSTICO 9,5 6666 | N31: 1 | O31: 0.004 | Q31: 200 | R31: 0.8 | S31: 0 | T31: 0 | U31: 0 | V31: 0 | W31: 0 | X31: 0 | Y31: 0 | Z31: 0 | AA31: 0 | AB31: 0 | AC31: 0 | AD31: 0 | AE31: 0 | AF31: 0 | AG31: 0 | AH31: 0 | AI31: 0 | AJ31: 0 | AK31: 0 | AL31: 0 | AM31: 0 | AN31: 0 | AO31: 0 | AP31: 0 | AQ31: 0 | AR31: 0
A32: RE225 | B32: TU80 | C32: 000662 | D32: 9 | E32: TFM 444 Z33 | F32: 3 | G32: 0.04 | I32: RE225 | J32: TU80 | K32: 000662 | L32: 9 | M32: TFM 444 Z33 | N32: 3 | O32: 0.04 | Q32: 600 | R32: 24 | S32: 0 | T32: 0 | U32: 0 | V32: 0 | W32: 0 | X32: 0 | Y32: 0 | Z32: 0 | AA32: 0 | AB32: 0 | AC32: 0 | AD32: 0 | AE32: 0 | AF32: 0 | AG32: 600 | AH32: 24 | AI32: 0 | AJ32: 0 | AK32: 0 | AL32: 0 | AM32: 0 | AN32: 0 | AO32: 0 | AP32: 0 | AQ32: 0 | AR32: 0
A33: RE225 | B33: TU80 | C33: 000662 | D33: 1 | E33: TUBO 333 9,5/45 | F33: 0.916 | G33: 0.56 | I33: RE225 | J33: TU80 | K33: 000662 | L33: 1 | M33: TUBO 333 9,5/45 | N33: 0.916 | O33: 0.56 | Q33: 183.2 | R33: 102.592 | S33: 0 | T33: 0 | U33: 0 | V33: 0 | W33: 0 | X33: 0 | Y33: 0 | Z33: 0 | AA33: 0 | AB33: 0 | AC33: 0 | AD33: 0 | AE33: 0 | AF33: 0 | AG33: 0 | AH33: 0 | AI33: 0 | AJ33: 0 | AK33: 0 | AL33: 0 | AM33: 0 | AN33: 0 | AO33: 0 | AP33: 0 | AQ33: 0 | AR33: 0
A34: RE225 | B34: TU80 | C34: 000662 | D34: 11 | E34: VARILLA A 3/65 22 | F34: 1 | G34: =+IF(OR(E5=201500133,E5=201500132),0.0309803921568627,IF(E5=201500131,0.0303294760527162,0.03)) -> 0.03098039216 | I34: RE225 | J34: TU80 | K34: 000662 | L34: 11 | M34: VARILLA A 3/65 22 | N34: 1 | O34: 0.03098039216 | Q34: 200 | R34: 6.196078431 | S34: 0 | T34: 0 | U34: 0 | V34: 0 | W34: 0 | X34: 0 | Y34: 0 | Z34: 0 | AA34: 0 | AB34: 0 | AC34: 0 | AD34: 0 | AE34: 0 | AF34: 0 | AG34: 0 | AH34: 0 | AI34: 0 | AJ34: 0 | AK34: 0 | AL34: 0 | AM34: 0 | AN34: 0 | AO34: 0 | AP34: 0 | AQ34: 0 | AR34: 0
A35: RE225 | B35: TU80 | C35: 000662 | D35: 12 | E35: VARILLA B 3/65 22 | F35: 1 | G35: 0.0319047619 | I35: RE225 | J35: TU80 | K35: 000662 | L35: 12 | M35: VARILLA B 3/65 22 | N35: 1 | O35: 0.0319047619 | Q35: 200 | R35: 6.380952381 | S35: 0 | T35: 0 | U35: 0 | V35: 0 | W35: 0 | X35: 0 | Y35: 0 | Z35: 0 | AA35: 0 | AB35: 0 | AC35: 0 | AD35: 0 | AE35: 0 | AF35: 0 | AG35: 0 | AH35: 0 | AI35: 0 | AJ35: 0 | AK35: 0 | AL35: 0 | AM35: 0 | AN35: 0 | AO35: 0 | AP35: 0 | AQ35: 0 | AR35: 0
A36: RE220 | B36: TU18 | C36: 003359 | D36: 2 | E36: HILO 80/20 0,25 | F36: 4.5 | G36: 0.01 | I36: 0 | J36: 0 | K36: 0 | L36: 0 | M36: 0 | N36: 0 | O36: 0 | Q36: =+N36*$G$5 -> 0 | R36: 0 | S36: 0 | T36: 0 | U36: 0 | V36: 0 | W36: 0 | X36: 0 | Y36: 0 | Z36: 0 | AA36: 0 | AB36: 0 | AC36: 0 | AD36: 0 | AE36: 0 | AF36: 0 | AG36: 0 | AH36: 0 | AI36: 0 | AJ36: 0 | AK36: 0 | AL36: 0 | AM36: 0 | AN36: 0 | AO36: 0 | AP36: 0 | AQ36: 0 | AR36: 0
A37: RE220 | B37: TU18 | C37: 003359 | D37: 30 | E37: MAGNES ALFA 4B | F37: 0.4 | G37: 0.55 | I37: 0 | J37: 0 | K37: 0 | L37: 0 | M37: 0 | N37: 0 | O37: 0 | Q37: 0 | R37: 0 | S37: 0 | T37: 0 | U37: 0 | V37: 0 | W37: 0 | X37: 0 | Y37: 0 | Z37: 0 | AA37: 0 | AB37: 0 | AC37: 0 | AD37: 0 | AE37: 0 | AF37: 0 | AG37: 0 | AH37: 0 | AI37: 0 | AJ37: 0 | AK37: 0 | AL37: 0 | AM37: 0 | AN37: 0 | AO37: 0 | AP37: 0 | AQ37: 0 | AR37: 0
A38: RE220 | B38: TU18 | C38: 003359 | D38: 7 | E38: TAPON PLÁSTICO 9,5 6666 | F38: 1 | G38: 0.004 | I38: 0 | J38: 0 | K38: 0 | L38: 0 | M38: 0 | N38: 0 | O38: 0 | Q38: 0 | R38: 0 | S38: 0 | T38: 0 | U38: 0 | V38: 0 | W38: 0 | X38: 0 | Y38: 0 | Z38: 0 | AA38: 0 | AB38: 0 | AC38: 0 | AD38: 0 | AE38: 0 | AF38: 0 | AG38: 0 | AH38: 0 | AI38: 0 | AJ38: 0 | AK38: 0 | AL38: 0 | AM38: 0 | AN38: 0 | AO38: 0 | AP38: 0 | AQ38: 0 | AR38: 0
A39: RE220 | B39: TU18 | C39: 003359 | D39: 9 | E39: TFM 444 Z33 | F39: 3 | G39: 0.04 | I39: 0 | J39: 0 | K39: 0 | L39: 0 | M39: 0 | N39: 0 | O39: 0 | Q39: 0 | R39: 0 | S39: 0 | T39: 0 | U39: 0 | V39: 0 | W39: 0 | X39: 0 | Y39: 0 | Z39: 0 | AA39: 0 | AB39: 0 | AC39: 0 | AD39: 0 | AE39: 0 | AF39: 0 | AG39: 0 | AH39: 0 | AI39: =+IF(AND(AI$5=$I$5,AI$7=$E39),$Q39,0) -> 0 | AJ39: 0 | AK39: 0 | AL39: 0 | AM39: 0 | AN39: 0 | AO39: 0 | AP39: 0 | AQ39: 0 | AR39: 0
A40: RE220 | B40: TU18 | C40: 003359 | D40: 1 | E40: TUBO 333 9,5/45 | F40: 0.645 | G40: 0.56 | I40: 0 | J40: 0 | K40: 0 | L40: 0 | M40: 0 | N40: 0 | O40: 0 | Q40: 0 | R40: 0 | S40: 0 | T40: 0 | U40: 0 | V40: 0 | W40: 0 | X40: 0 | Y40: 0 | Z40: 0 | AA40: 0 | AB40: 0 | AC40: 0 | AD40: 0 | AE40: 0 | AF40: 0 | AG40: 0 | AH40: 0 | AI40: 0 | AJ40: 0 | AK40: 0 | AL40: 0 | AM40: 0 | AN40: 0 | AO40: 0 | AP40: 0 | AQ40: 0 | AR40: 0
A41: RE220 | B41: TU18 | C41: 003359 | D41: 27 | E41: VARILLA A 3/65 22 | F41: 1 | G41: =+IF(E5=201500134,0.0309803921568627,0.03) -> 0.03 | I41: 0 | J41: 0 | K41: 0 | L41: 0 | M41: 0 | N41: 0 | O41: 0 | Q41: 0 | R41: 0 | S41: =+IF(AND(S$5=$I$5,S$7=$E41),$Q41,0) -> 0 | T41: 0 | U41: 0 | V41: 0 | W41: 0 | X41: 0 | Y41: 0 | Z41: 0 | AA41: 0 | AB41: 0 | AC41: 0 | AD41: 0 | AE41: 0 | AF41: 0 | AG41: 0 | AH41: 0 | AI41: 0 | AJ41: 0 | AK41: 0 | AL41: 0 | AM41: 0 | AN41: 0 | AO41: 0 | AP41: 0 | AQ41: 0 | AR41: 0
A42: RE220 | B42: TU18 | C42: 003359 | D42: 28 | E42: VARILLA B 3/65 22 | F42: 1 | G42: 0.0319047619 | I42: 0 | J42: 0 | K42: 0 | L42: 0 | M42: 0 | N42: 0 | O42: 0 | Q42: =+N42*$G$5 -> 0 | R42: 0 | S42: 0 | T42: 0 | U42: 0 | V42: 0 | W42: 0 | X42: 0 | Y42: 0 | Z42: 0 | AA42: 0 | AB42: 0 | AC42: 0 | AD42: 0 | AE42: 0 | AF42: 0 | AG42: 0 | AH42: 0 | AI42: 0 | AJ42: 0 | AK42: 0 | AL42: 0 | AM42: 0 | AN42: 0 | AO42: 0 | AP42: 0 | AQ42: 0 | AR42: 0
R43: =+T43+V43+X43+Z43+AB43+AD43+AF43+AH43+AJ43+AL43+AN43+AP43+AR43 -> 24 | S43: =+SUM(S8:S42) -> 0 | T43: 0 | U43: 0 | V43: 0 | W43: 0 | X43: 0 | Y43: 0 | Z43: 0 | AA43: 0 | AB43: 0 | AC43: 0 | AD43: 0 | AE43: 0 | AF43: 0 | AG43: 600 | AH43: 24 | AI43: 0 | AJ43: 0 | AK43: 0 | AL43: 0 | AM43: 0 | AN43: 0 | AO43: 0 | AP43: 0 | AQ43: 0 | AR43: 0
R44: |
R45: | | S45: Consumo | T45: Coste | U45: Consumo | V45: Coste | W45: Consumo | X45: Coste | Y45: Consumo | Z45: Coste | AA45: Consumo | AB45: Coste | AC45: Consumo | AD45: Coste | AE45: Consumo | AF45: Coste | AG45: Consumo | AH45: Coste | AI45: Consumo | AJ45: Coste | AK45: Consumo | AL45: Coste | AM45: Consumo | AN45: Coste | AO45: Consumo | AP45: Coste | AQ45: Consumo | AR45: Coste
R46: Coste | S46: HILO 80/20 0,25 | T46: HILO 80/20 0,25 | U46: HILO 80/20 0,33 | V46: HILO 80/20 0,33 | W46: HILO 80/20 0,35 | X46: HILO 80/20 0,35 | Y46: HILO 80/20 0,40 | Z46: HILO 80/20 0,40 | AA46: HILO 80/20 0,55 | AB46: HILO 80/20 0,55 | AC46: MAGNES ALFA 4B | AD46: MAGNES ALFA 4B | AE46: TAPON PLÁSTICO 9,5 6666 | AF46: TAPON PLÁSTICO 9,5 6666 | AG46: TFM 444 Z33 | AH46: TFM 444 Z33 | AI46: TUBO 333 9,5/45 | AJ46: TUBO 333 9,5/45 | AK46: VARILLA A 3/65 11 | AL46: VARILLA A 3/65 11 | AM46: VARILLA A 3/65 22 | AN46: VARILLA A 3/65 22 | AO46: VARILLA B 3/65 11 | AP46: VARILLA B 3/65 11 | AQ46: VARILLA B 3/65 22 | AR46: VARILLA B 3/65 22
P47: Semiterm | Q47: 201500116 | R47: 50.46166667 | S47: 2047.5 | T47: 20.475 | U47: 0 | V47: 0 | W47: 0 | X47: 0 | Y47: 0 | Z47: 0 | AA47: 0 | AB47: 0 | AC47: 0 | AD47: 0 | AE47: 455 | AF47: 1.82 | AG47: 0 | AH47: 0 | AI47: 0 | AJ47: 0 | AK47: 0 | AL47: 0 | AM47: 455 | AN47: 13.65 | AO47: 0 | AP47: 0 | AQ47: 455 | AR47: 14.51666667
P48: Semiterm | Q48: 201500119 | R48: 388.7211905 | S48: 15772.5 | T48: 157.725 | U48: 0 | V48: 0 | W48: 0 | X48: 0 | Y48: 0 | Z48: 0 | AA48: 0 | AB48: 0 | AC48: 0 | AD48: 0 | AE48: 3505 | AF48: 14.02 | AG48: 0 | AH48: 0 | AI48: 0 | AJ48: 0 | AK48: 0 | AL48: 0 | AM48: 3505 | AN48: 105.15 | AO48: 0 | AP48: 0 | AQ48: 3505 | AR48: 111.8261905
P49: Semiterm | Q49: 201500120 | R49: 0.5545238095 | S49: 22.5 | T49: 0.225 | U49: 0 | V49: 0 | W49: 0 | X49: 0 | Y49: 0 | Z49: 0 | AA49: 0 | AB49: 0 | AC49: 0 | AD49: 0 | AE49: 5 | AF49: 0.02 | AG49: 0 | AH49: 0 | AI49: 0 | AJ49: 0 | AK49: 0 | AL49: 0 | AM49: 5 | AN49: 0.15 | AO49: 0 | AP49: 0 | AQ49: 5 | AR49: 0.1595238095
P50: Semiterm | Q50: 201500121 | R50: 14.41761905 | S50: 585 | T50: 5.85 | U50: 0 | V50: 0 | W50: 0 | X50: 0 | Y50: 0 | Z50: 0 | AA50: 0 | AB50: 0 | AC50: 0 | AD50: 0 | AE50: 130 | AF50: 0.52 | AG50: 0 | AH50: 0 | AI50: 0 | AJ50: 0 | AK50: 0 | AL50: 0 | AM50: 130 | AN50: 3.9 | AO50: 0 | AP50: 0 | AQ50: 130 | AR50: 4.147619048
P51: bucle | Q51: 201500122 | R51: 717.5 | S51: 0 | T51: 0 | U51: 0 | V51: 0 | W51: 0 | X51: 0 | Y51: 0 | Z51: 0 | AA51: 9375 | AB51: 562.5 | AC51: 0 | AD51: 0 | AE51: 1250 | AF51: 5 | AG51: 0 | AH51: 0 | AI51: 0 | AJ51: 0 | AK51: 1250 | AL51: 75 | AM51: 0 | AN51: 0 | AO51: 1250 | AP51: 75 | AQ51: 0 | AR51: 0
P52: bucle | Q52: 201500123 | R52: 262.28 | S52: 0 | T52: 0 | U52: 0 | V52: 0 | W52: 0 | X52: 0 | Y52: 5312 | Z52: 159.36 | AA52: 0 | AB52: 0 | AC52: 0 | AD52: 0 | AE52: 830 | AF52: 3.32 | AG52: 0 | AH52: 0 | AI52: 0 | AJ52: 0 | AK52: 830 | AL52: 49.8 | AM52: 0 | AN52: 0 | AO52: 830 | AP52: 49.8 | AQ52: 0 | AR52: 0
P53: bucle | Q53: 201500124 | R53: 292.3 | S53: 0 | T53: 0 | U53: 0 | V53: 0 | W53: 0 | X53: 0 | Y53: 5920 | Z53: 177.6 | AA53: 0 | AB53: 0 | AC53: 0 | AD53: 0 | AE53: 925 | AF53: 3.7 | AG53: 0 | AH53: 0 | AI53: 0 | AJ53: 0 | AK53: 925 | AL53: 55.5 | AM53: 0 | AN53: 0 | AO53: 925 | AP53: 55.5 | AQ53: 0 | AR53: 0
P54: bucle | Q54: 201500125 | R54: 568.8 | S54: 0 | T54: 0 | U54: 0 | V54: 0 | W54: 0 | X54: 0 | Y54: 11520 | Z54: 345.6 | AA54: 0 | AB54: 0 | AC54: 0 | AD54: 0 | AE54: 1800 | AF54: 7.2 | AG54: 0 | AH54: 0 | AI54: 0 | AJ54: 0 | AK54: 1800 | AL54: 108 | AM54: 0 | AN54: 0 | AO54: 1800 | AP54: 108 | AQ54: 0 | AR54: 0
P55: bucle | Q55: 201500126 | R55: 6.099761905 | S55: 247.5 | T55: 2.475 | U55: 0 | V55: 0 | W55: 0 | X55: 0 | Y55: 0 | Z55: 0 | AA55: 0 | AB55: 0 | AC55: 0 | AD55: 0 | AE55: 55 | AF55: 0.22 | AG55: 0 | AH55: 0 | AI55: 0 | AJ55: 0 | AK55: 0 | AL55: 0 | AM55: 55 | AN55: 1.65 | AO55: 0 | AP55: 0 | AQ55: 55 | AR55: 1.754761905
P56: bucle | Q56: 201500127 | R56: 492.5037143 | S56: 0 | T56: 0 | U56: 19434 | V56: 330.378 | W56: 0 | X56: 0 | Y56: 0 | Z56: 0 | AA56: 0 | AB56: 0 | AC56: 0 | AD56: 0 | AE56: 2460 | AF56: 9.84 | AG56: 0 | AH56: 0 | AI56: 0 | AJ56: 0 | AK56: 0 | AL56: 0 | AM56: 2460 | AN56: 73.8 | AO56: 0 | AP56: 0 | AQ56: 2460 | AR56: 78.48571429
P57: bucle | Q57: 201500128 | R57: 8.008190476 | S57: 0 | T57: 0 | U57: 316 | V57: 5.372 | W57: 0 | X57: 0 | Y57: 0 | Z57: 0 | AA57: 0 | AB57: 0 | AC57: 0 | AD57: 0 | AE57: 40 | AF57: 0.16 | AG57: 0 | AH57: 0 | AI57: 0 | AJ57: 0 | AK57: 0 | AL57: 0 | AM57: 40 | AN57: 1.2 | AO57: 0 | AP57: 0 | AQ57: 40 | AR57: 1.276190476
P58: bucle | Q58: 201500129 | R58: 378.84 | S58: 0 | T58: 0 | U58: 0 | V58: 0 | W58: 0 | X58: 0 | Y58: 0 | Z58: 0 | AA58: 4950 | AB58: 297 | AC58: 0 | AD58: 0 | AE58: 660 | AF58: 2.64 | AG58: 0 | AH58: 0 | AI58: 0 | AJ58: 0 | AK58: 660 | AL58: 39.6 | AM58: 0 | AN58: 0 | AO58: 660 | AP58: 39.6 | AQ58: 0 | AR58: 0
P59: bucle | Q59: 201500130 | R59: 8.316190476 | S59: 0 | T59: 0 | U59: 0 | V59: 0 | W59: 284 | X59: 5.68 | Y59: 0 | Z59: 0 | AA59: 0 | AB59: 0 | AC59: 0 | AD59: 0 | AE59: 40 | AF59: 0.16 | AG59: 0 | AH59: 0 | AI59: 0 | AJ59: 0 | AK59: 0 | AL59: 0 | AM59: 40 | AN59: 1.2 | AO59: 0 | AP59: 0 | AQ59: 40 | AR59: 1.276190476
P60: bucle | Q60: 201500131 | R60: 127.0228852 | S60: 0 | T60: 0 | U60: 0 | V60: 0 | W60: 4331 | X60: 86.62 | Y60: 0 | Z60: 0 | AA60: 0 | AB60: 0 | AC60: 0 | AD60: 0 | AE60: 610 | AF60: 2.44 | AG60: 0 | AH60: 0 | AI60: 0 | AJ60: 0 | AK60: 0 | AL60: 0 | AM60: 610 | AN60: 18.50098039 | AO60: 0 | AP60: 0 | AQ60: 610 | AR60: 19.46190476
P61: bucle | Q61: 201500123 | R61: 265.44 | S61: 0 | T61: 0 | U61: 0 | V61: 0 | W61: 0 | X61: 0 | Y61: 5376 | Z61: 161.28 | AA61: 0 | AB61: 0 | AC61: 0 | AD61: 0 | AE61: 840 | AF61: 3.36 | AG61: 0 | AH61: 0 | AI61: 0 | AJ61: 0 | AK61: 840 | AL61: 50.4 | AM61: 0 | AN61: 0 | AO61: 840 | AP61: 50.4 | AQ61: 0 | AR61: 0
P62: bucle | Q62: 201500132 | R62: 22.97736695 | S62: 0 | T62: 0 | U62: 0 | V62: 0 | W62: 781 | X62: 15.62 | Y62: 0 | Z62: 0 | AA62: 0 | AB62: 0 | AC62: 0 | AD62: 0 | AE62: 110 | AF62: 0.44 | AG62: 0 | AH62: 0 | AI62: 0 | AJ62: 0 | AK62: 0 | AL62: 0 | AM62: 110 | AN62: 3.407843137 | AO62: 0 | AP62: 0 | AQ62: 110 | AR62: 3.50952381
P63: bucle | Q63: 201500133 | R63: 43.86588235 | S63: 0 | T63: 0 | U63: 0 | V63: 0 | W63: 1491 | X63: 29.82 | Y63: 0 | Z63: 0 | AA63: 0 | AB63: 0 | AC63: 0 | AD63: 0 | AE63: 210 | AF63: 0.84 | AG63: 0 | AH63: 0 | AI63: 0 | AJ63: 0 | AK63: 0 | AL63: 0 | AM63: 210 | AN63: 6.505882353 | AO63: 0 | AP63: 0 | AQ63: 210 | AR63: 6.7
P64: bucle | Q64: 201500134 | R64: 101.8154902 | S64: 4095 | T64: 40.95 | U64: 0 | V64: 0 | W64: 0 | X64: 0 | Y64: 0 | Z64: 0 | AA64: 0 | AB64: 0 | AC64: 0 | AD64: 0 | AE64: 910 | AF64: 3.64 | AG64: 0 | AH64: 0 | AI64: 0 | AJ64: 0 | AK64: 0 | AL64: 0 | AM64: 910 | AN64: 28.19215686 | AO64: 0 | AP64: 0 | AQ64: 910 | AR64: 29.03333333
Q65: BLANK | R65: 0 | S65: 0 | T65: 0 | U65: 0 | V65: 0 | W65: 0 | X65: 0 | Y65: 0 | Z65: 0 | AA65: 0 | AB65: 0 | AC65: 0 | AD65: 0 | AE65: 0 | AF65: 0 | AG65: 0 | AH65: 0 | AI65: 0 | AJ65: 0 | AK65: 0 | AL65: 0 | AM65: 0 | AN65: 0 | AO65: 0 | AP65: 0 | AQ65: 0 | AR65: 0
P66: relle | Q66: 201500116 | R66: 266.266 | S66: 0 | T66: 0 | U66: 0 | V66: 0 | W66: 0 | X66: 0 | Y66: 0 | Z66: 0 | AA66: 0 | AB66: 0 | AC66: 182 | AD66: 100.1 | AE66: 455 | AF66: 1.82 | AG66: 0 | AH66: 0 | AI66: 293.475 | AJ66: 164.346 | AK66: 0 | AL66: 0 | AM66: 0 | AN66: 0 | AO66: 0 | AP66: 0 | AQ66: 0 | AR66: 0
P67: relle | Q67: 201500119 | R67: 2051.126 | S67: 0 | T67: 0 | U67: 0 | V67: 0 | W67: 0 | X67: 0 | Y67: 0 | Z67: 0 | AA67: 0 | AB67: 0 | AC67: 1402 | AD67: 771.1 | AE67: 3505 | AF67: 14.02 | AG67: 0 | AH67: 0 | AI67: 2260.725 | AJ67: 1266.006 | AK67: 0 | AL67: 0 | AM67: 0 | AN67: 0 | AO67: 0 | AP67: 0 | AQ67: 0 | AR67: 0
P68: relle | Q68: 201500120 | R68: 2.926 | S68: 0 | T68: 0 | U68: 0 | V68: 0 | W68: 0 | X68: 0 | Y68: 0 | Z68: 0 | AA68: 0 | AB68: 0 | AC68: 2 | AD68: 1.1 | AE68: 5 | AF68: 0.02 | AG68: 0 | AH68: 0 | AI68: 3.225 | AJ68: 1.806 | AK68: 0 | AL68: 0 | AM68: 0 | AN68: 0 | AO68: 0 | AP68: 0 | AQ68: 0 | AR68: 0
P69: relle | Q69: 201500121 | R69: 76.076 | S69: 0 | T69: 0 | U69: 0 | V69: 0 | W69: 0 | X69: 0 | Y69: 0 | Z69: 0 | AA69: 0 | AB69: 0 | AC69: 52 | AD69: 28.6 | AE69: 130 | AF69: 0.52 | AG69: 0 | AH69: 0 | AI69: 83.85 | AJ69: 46.956 | AK69: 0 | AL69: 0 | AM69: 0 | AN69: 0 | AO69: 0 | AP69: 0 | AQ69: 0 | AR69: 0
P70: relle | Q70: 201500123 | R70: 825.40528 | S70: 0 | T70: 0 | U70: 0 | V70: 0 | W70: 0 | X70: 0 | Y70: 0 | Z70: 0 | AA70: 0 | AB70: 0 | AC70: 495.6 | AD70: 272.58 | AE70: 826 | AF70: 3.304 | AG70: 0 | AH70: 0 | AI70: 981.288 | AJ70: 549.52128 | AK70: 0 | AL70: 0 | AM70: 0 | AN70: 0 | AO70: 0 | AP70: 0 | AQ70: 0 | AR70: 0
P71: relle | Q71: 201500124 | R71: 914.3412 | S71: 0 | T71: 0 | U71: 0 | V71: 0 | W71: 0 | X71: 0 | Y71: 0 | Z71: 0 | AA71: 0 | AB71: 0 | AC71: 549 | AD71: 301.95 | AE71: 915 | AF71: 3.66 | AG71: 0 | AH71: 0 | AI71: 1087.02 | AJ71: 608.7312 | AK71: 0 | AL71: 0 | AM71: 0 | AN71: 0 | AO71: 0 | AP71: 0 | AQ71: 0 | AR71: 0
P72: relle | Q72: 201500125 | R72: 1798.704 | S72: 0 | T72: 0 | U72: 0 | V72: 0 | W72: 0 | X72: 0 | Y72: 0 | Z72: 0 | AA72: 0 | AB72: 0 | AC72: 1080 | AD72: 594 | AE72: 1800 | AF72: 7.2 | AG72: 0 | AH72: 0 | AI72: 2138.4 | AJ72: 1197.504 | AK72: 0 | AL72: 0 | AM72: 0 | AN72: 0 | AO72: 0 | AP72: 0 | AQ72: 0 | AR72: 0
P73: relle | Q73: 201500122 | R73: 461.686 | S73: 0 | T73: 0 | U73: 0 | V73: 0 | W73: 0 | X73: 0 | Y73: 0 | Z73: 0 | AA73: 0 | AB73: 0 | AC73: 185 | AD73: 101.75 | AE73: 370 | AF73: 1.48 | AG73: 0 | AH73: 0 | AI73: 640.1 | AJ73: 358.456 | AK73: 0 | AL73: 0 | AM73: 0 | AN73: 0 | AO73: 0 | AP73: 0 | AQ73: 0 | AR73: 0
P74: relle | Q74: 201500122 | R74: 1048.152 | S74: 0 | T74: 0 | U74: 0 | V74: 0 | W74: 0 | X74: 0 | Y74: 0 | Z74: 0 | AA74: 0 | AB74: 0 | AC74: 420 | AD74: 231 | AE74: 840 | AF74: 3.36 | AG74: 0 | AH74: 0 | AI74: 1453.2 | AJ74: 813.792 | AK74: 0 | AL74: 0 | AM74: 0 | AN74: 0 | AO74: 0 | AP74: 0 | AQ74: 0 | AR74: 0
P75: relle | Q75: 201500129 | R75: 823.548 | S75: 0 | T75: 0 | U75: 0 | V75: 0 | W75: 0 | X75: 0 | Y75: 0 | Z75: 0 | AA75: 0 | AB75: 0 | AC75: 330 | AD75: 181.5 | AE75: 660 | AF75: 2.64 | AG75: 0 | AH75: 0 | AI75: 1141.8 | AJ75: 639.408 | AK75: 0 | AL75: 0 | AM75: 0 | AN75: 0 | AO75: 0 | AP75: 0 | AQ75: 0 | AR75: 0
P76: relle | Q76: 201500126 | R76: 30.4304 | S76: 0 | T76: 0 | U76: 0 | V76: 0 | W76: 0 | X76: 0 | Y76: 0 | Z76: 0 | AA76: 0 | AB76: 0 | AC76: 20.8 | AD76: 11.44 | AE76: 52 | AF76: 0.208 | AG76: 0 | AH76: 0 | AI76: 33.54 | AJ76: 18.7824 | AK76: 0 | AL76: 0 | AM76: 0 | AN76: 0 | AO76: 0 | AP76: 0 | AQ76: 0 | AR76: 0
P77: relle | Q77: 201500134 | R77: 532.532 | S77: 0 | T77: 0 | U77: 0 | V77: 0 | W77: 0 | X77: 0 | Y77: 0 | Z77: 0 | AA77: 0 | AB77: 0 | AC77: 364 | AD77: 200.2 | AE77: 910 | AF77: 3.64 | AG77: 0 | AH77: 0 | AI77: 586.95 | AJ77: 328.692 | AK77: 0 | AL77: 0 | AM77: 0 | AN77: 0 | AO77: 0 | AP77: 0 | AQ77: 0 | AR77: 0
P78: relle | Q78: 201500123 | R78: 834.3988 | S78: 0 | T78: 0 | U78: 0 | V78: 0 | W78: 0 | X78: 0 | Y78: 0 | Z78: 0 | AA78: 0 | AB78: 0 | AC78: 501 | AD78: 275.55 | AE78: 835 | AF78: 3.34 | AG78: 0 | AH78: 0 | AI78: 991.98 | AJ78: 555.5088 | AK78: 0 | AL78: 0 | AM78: 0 | AN78: 0 | AO78: 0 | AP78: 0 | AQ78: 0 | AR78: 0
P79: relle | Q79: 201500127 | R79: 1881.9504 | S79: 0 | T79: 0 | U79: 0 | V79: 0 | W79: 0 | X79: 0 | Y79: 0 | Z79: 0 | AA79: 0 | AB79: 0 | AC79: 981 | AD79: 539.55 | AE79: 1635 | AF79: 6.54 | AG79: 0 | AH79: 0 | AI79: 2385.465 | AJ79: 1335.8604 | AK79: 0 | AL79: 0 | AM79: 0 | AN79: 0 | AO79: 0 | AP79: 0 | AQ79: 0 | AR79: 0
P80: relle | Q80: 201500127 | R80: 938.0976 | S80: 0 | T80: 0 | U80: 0 | V80: 0 | W80: 0 | X80: 0 | Y80: 0 | Z80: 0 | AA80: 0 | AB80: 0 | AC80: 489 | AD80: 268.95 | AE80: 815 | AF80: 3.26 | AG80: 0 | AH80: 0 | AI80: 1189.085 | AJ80: 665.8876 | AK80: 0 | AL80: 0 | AM80: 0 | AN80: 0 | AO80: 0 | AP80: 0 | AQ80: 0 | AR80: 0
P81: relle | Q81: 201500128 | R81: 46.0416 | S81: 0 | T81: 0 | U81: 0 | V81: 0 | W81: 0 | X81: 0 | Y81: 0 | Z81: 0 | AA81: 0 | AB81: 0 | AC81: 24 | AD81: 13.2 | AE81: 40 | AF81: 0.16 | AG81: 0 | AH81: 0 | AI81: 58.36 | AJ81: 32.6816 | AK81: 0 | AL81: 0 | AM81: 0 | AN81: 0 | AO81: 0 | AP81: 0 | AQ81: 0 | AR81: 0
P82: relle | Q82: 201500130 | R82: 31.6784 | S82: 0 | T82: 0 | U82: 0 | V82: 0 | W82: 0 | X82: 0 | Y82: 0 | Z82: 0 | AA82: 0 | AB82: 0 | AC82: 20 | AD82: 11 | AE82: 40 | AF82: 0.16 | AG82: 0 | AH82: 0 | AI82: 36.64 | AJ82: 20.5184 | AK82: 0 | AL82: 0 | AM82: 0 | AN82: 0 | AO82: 0 | AP82: 0 | AQ82: 0 | AR82: 0
P83: relle | Q83: 201500131 | R83: 475.176 | S83: 0 | T83: 0 | U83: 0 | V83: 0 | W83: 0 | X83: 0 | Y83: 0 | Z83: 0 | AA83: 0 | AB83: 0 | AC83: 300 | AD83: 165 | AE83: 600 | AF83: 2.4 | AG83: 0 | AH83: 0 | AI83: 549.6 | AJ83: 307.776 | AK83: 0 | AL83: 0 | AM83: 0 | AN83: 0 | AO83: 0 | AP83: 0 | AQ83: 0 | AR83: 0
P84: relle | Q84: 201500132 | R84: 83.1558 | S84: 0 | T84: 0 | U84: 0 | V84: 0 | W84: 0 | X84: 0 | Y84: 0 | Z84: 0 | AA84: 0 | AB84: 0 | AC84: 52.5 | AD84: 28.875 | AE84: 105 | AF84: 0.42 | AG84: 0 | AH84: 0 | AI84: 96.18 | AJ84: 53.8608 | AK84: 0 | AL84: 0 | AM84: 0 | AN84: 0 | AO84: 0 | AP84: 0 | AQ84: 0 | AR84: 0
P85: relle | Q85: 201500133 | R85: 158.392 | S85: 0 | T85: 0 | U85: 0 | V85: 0 | W85: 0 | X85: 0 | Y85: 0 | Z85: 0 | AA85: 0 | AB85: 0 | AC85: 100 | AD85: 55 | AE85: 200 | AF85: 0.8 | AG85: 0 | AH85: 0 | AI85: 183.2 | AJ85: 102.592 | AK85: 0 | AL85: 0 | AM85: 0 | AN85: 0 | AO85: 0 | AP85: 0 | AQ85: 0 | AR85: 0
P86: extru | Q86: 201500116 | R86: 54.6 | S86: 0 | T86: 0 | U86: 0 | V86: 0 | W86: 0 | X86: 0 | Y86: 0 | Z86: 0 | AA86: 0 | AB86: 0 | AC86: 0 | AD86: 0 | AE86: 0 | AF86: 0 | AG86: 1365 | AH86: 54.6 | AI86: 0 | AJ86: 0 | AK86: 0 | AL86: 0 | AM86: 0 | AN86: 0 | AO86: 0 | AP86: 0 | AQ86: 0 | AR86: 0
P87: extru | Q87: 201500119 | R87: 420 | S87: 0 | T87: 0 | U87: 0 | V87: 0 | W87: 0 | X87: 0 | Y87: 0 | Z87: 0 | AA87: 0 | AB87: 0 | AC87: 0 | AD87: 0 | AE87: 0 | AF87: 0 | AG87: 10500 | AH87: 420 | AI87: 0 | AJ87: 0 | AK87: 0 | AL87: 0 | AM87: 0 | AN87: 0 | AO87: 0 | AP87: 0 | AQ87: 0 | AR87: 0
P88: extru | Q88: 201500121 | R88: 15.6 | S88: 0 | T88: 0 | U88: 0 | V88: 0 | W88: 0 | X88: 0 | Y88: 0 | Z88: 0 | AA88: 0 | AB88: 0 | AC88: 0 | AD88: 0 | AE88: 0 | AF88: 0 | AG88: 390 | AH88: 15.6 | AI88: 0 | AJ88: 0 | AK88: 0 | AL88: 0 | AM88: 0 | AN88: 0 | AO88: 0 | AP88: 0 | AQ88: 0 | AR88: 0
P89: extru | Q89: 201500123 | R89: 99 | S89: 0 | T89: 0 | U89: 0 | V89: 0 | W89: 0 | X89: 0 | Y89: 0 | Z89: 0 | AA89: 0 | AB89: 0 | AC89: 0 | AD89: 0 | AE89: 0 | AF89: 0 | AG89: 2475 | AH89: 99 | AI89: 0 | AJ89: 0 | AK89: 0 | AL89: 0 | AM89: 0 | AN89: 0 | AO89: 0 | AP89: 0 | AQ89: 0 | AR89: 0
P90: extru | Q90: 201500124 | R90: 108.24 | S90: 0 | T90: 0 | U90: 0 | V90: 0 | W90: 0 | X90: 0 | Y90: 0 | Z90: 0 | AA90: 0 | AB90: 0 | AC90: 0 | AD90: 0 | AE90: 0 | AF90: 0 | AG90: 2706 | AH90: 108.24 | AI90: 0 | AJ90: 0 | AK90: 0 | AL90: 0 | AM90: 0 | AN90: 0 | AO90: 0 | AP90: 0 | AQ90: 0 | AR90: 0
P91: extru | Q91: 201500125 | R91: 216 | S91: 0 | T91: 0 | U91: 0 | V91: 0 | W91: 0 | X91: 0 | Y91: 0 | Z91: 0 | AA91: 0 | AB91: 0 | AC91: 0 | AD91: 0 | AE91: 0 | AF91: 0 | AG91: 5400 | AH91: 216 | AI91: 0 | AJ91: 0 | AK91: 0 | AL91: 0 | AM91: 0 | AN91: 0 | AO91: 0 | AP91: 0 | AQ91: 0 | AR91: 0
P92: extru | Q92: 201500122 | R92: 72 | S92: 0 | T92: 0 | U92: 0 | V92: 0 | W92: 0 | X92: 0 | Y92: 0 | Z92: 0 | AA92: 0 | AB92: 0 | AC92: 0 | AD92: 0 | AE92: 0 | AF92: 0 | AG92: 1800 | AH92: 72 | AI92: 0 | AJ92: 0 | AK92: 0 | AL92: 0 | AM92: 0 | AN92: 0 | AO92: 0 | AP92: 0 | AQ92: 0 | AR92: 0
P93: extru | Q93: 201500122 | R93: 72 | S93: 0 | T93: 0 | U93: 0 | V93: 0 | W93: 0 | X93: 0 | Y93: 0 | Z93: 0 | AA93: 0 | AB93: 0 | AC93: 0 | AD93: 0 | AE93: 0 | AF93: 0 | AG93: 1800 | AH93: 72 | AI93: 0 | AJ93: 0 | AK93: 0 | AL93: 0 | AM93: 0 | AN93: 0 | AO93: 0 | AP93: 0 | AQ93: 0 | AR93: 0
P94: extru | Q94: 201500129 | R94: 78.6 | S94: 0 | T94: 0 | U94: 0 | V94: 0 | W94: 0 | X94: 0 | Y94: 0 | Z94: 0 | AA94: 0 | AB94: 0 | AC94: 0 | AD94: 0 | AE94: 0 | AF94: 0 | AG94: 1965 | AH94: 78.6 | AI94: 0 | AJ94: 0 | AK94: 0 | AL94: 0 | AM94: 0 | AN94: 0 | AO94: 0 | AP94: 0 | AQ94: 0 | AR94: 0
P95: extru | Q95: 201500126 | R95: 5.76 | S95: 0 | T95: 0 | U95: 0 | V95: 0 | W95: 0 | X95: 0 | Y95: 0 | Z95: 0 | AA95: 0 | AB95: 0 | AC95: 0 | AD95: 0 | AE95: 0 | AF95: 0 | AG95: 144 | AH95: 5.76 | AI95: 0 | AJ95: 0 | AK95: 0 | AL95: 0 | AM95: 0 | AN95: 0 | AO95: 0 | AP95: 0 | AQ95: 0 | AR95: 0
P96: extru | Q96: 201500134 | R96: 109.2 | S96: 0 | T96: 0 | U96: 0 | V96: 0 | W96: 0 | X96: 0 | Y96: 0 | Z96: 0 | AA96: 0 | AB96: 0 | AC96: 0 | AD96: 0 | AE96: 0 | AF96: 0 | AG96: 2730 | AH96: 109.2 | AI96: 0 | AJ96: 0 | AK96: 0 | AL96: 0 | AM96: 0 | AN96: 0 | AO96: 0 | AP96: 0 | AQ96: 0 | AR96: 0
P97: extru | Q97: 201500127 | R97: 294 | S97: 0 | T97: 0 | U97: 0 | V97: 0 | W97: 0 | X97: 0 | Y97: 0 | Z97: 0 | AA97: 0 | AB97: 0 | AC97: 0 | AD97: 0 | AE97: 0 | AF97: 0 | AG97: 7350 | AH97: 294 | AI97: 0 | AJ97: 0 | AK97: 0 | AL97: 0 | AM97: 0 | AN97: 0 | AO97: 0 | AP97: 0 | AQ97: 0 | AR97: 0
P98: extru | Q98: 201500128 | R98: 4.8 | S98: 0 | T98: 0 | U98: 0 | V98: 0 | W98: 0 | X98: 0 | Y98: 0 | Z98: 0 | AA98: 0 | AB98: 0 | AC98: 0 | AD98: 0 | AE98: 0 | AF98: 0 | AG98: 120 | AH98: 4.8 | AI98: 0 | AJ98: 0 | AK98: 0 | AL98: 0 | AM98: 0 | AN98: 0 | AO98: 0 | AP98: 0 | AQ98: 0 | AR98: 0
P99: extru | Q99: 201500123 | R99: 99.6 | S99: 0 | T99: 0 | U99: 0 | V99: 0 | W99: 0 | X99: 0 | Y99: 0 | Z99: 0 | AA99: 0 | AB99: 0 | AC99: 0 | AD99: 0 | AE99: 0 | AF99: 0 | AG99: 2490 | AH99: 99.6 | AI99: 0 | AJ99: 0 | AK99: 0 | AL99: 0 | AM99: 0 | AN99: 0 | AO99: 0 | AP99: 0 | AQ99: 0 | AR99: 0
P100: extru | Q100: 201500130 | R100: 4.8 | S100: 0 | T100: 0 | U100: 0 | V100: 0 | W100: 0 | X100: 0 | Y100: 0 | Z100: 0 | AA100: 0 | AB100: 0 | AC100: 0 | AD100: 0 | AE100: 0 | AF100: 0 | AG100: 120 | AH100: 4.8 | AI100: 0 | AJ100: 0 | AK100: 0 | AL100: 0 | AM100: 0 | AN100: 0 | AO100: 0 | AP100: 0 | AQ100: 0 | AR100: 0
P101: extru | Q101: 201500131 | R101: 24 | S101: 0 | T101: 0 | U101: 0 | V101: 0 | W101: 0 | X101: 0 | Y101: 0 | Z101: 0 | AA101: 0 | AB101: 0 | AC101: 0 | AD101: 0 | AE101: 0 | AF101: 0 | AG101: 600 | AH101: 24 | AI101: 0 | AJ101: 0 | AK101: 0 | AL101: 0 | AM101: 0 | AN101: 0 | AO101: 0 | AP101: 0 | AQ101: 0 | AR101: 0
P102: extru | Q102: 201500131 | R102: 47.4 | S102: 0 | T102: 0 | U102: 0 | V102: 0 | W102: 0 | X102: 0 | Y102: 0 | Z102: 0 | AA102: 0 | AB102: 0 | AC102: 0 | AD102: 0 | AE102: 0 | AF102: 0 | AG102: 1185 | AH102: 47.4 | AI102: 0 | AJ102: 0 | AK102: 0 | AL102: 0 | AM102: 0 | AN102: 0 | AO102: 0 | AP102: 0 | AQ102: 0 | AR102: 0
P103: extru | Q103: 201500132 | R103: 12 | S103: 0 | T103: 0 | U103: 0 | V103: 0 | W103: 0 | X103: 0 | Y103: 0 | Z103: 0 | AA103: 0 | AB103: 0 | AC103: 0 | AD103: 0 | AE103: 0 | AF103: 0 | AG103: 300 | AH103: 12 | AI103: 0 | AJ103: 0 | AK103: 0 | AL103: 0 | AM103: 0 | AN103: 0 | AO103: 0 | AP103: 0 | AQ103: 0 | AR103: 0
P104: extru | Q104: 201500133 | R104: 24 | S104: 0 | T104: 0 | U104: 0 | V104: 0 | W104: 0 | X104: 0 | Y104: 0 | Z104: 0 | AA104: 0 | AB104: 0 | AC104: 0 | AD104: 0 | AE104: 0 | AF104: 0 | AG104: 600 | AH104: 24 | AI104: 0 | AJ104: 0 | AK104: 0 | AL104: 0 | AM104: 0 | AN104: 0 | AO104: 0 | AP104: 0 | AQ104: 0 | AR104: 0
R105: =+T105+V105+X105+Z105+AB105+AD105+AF105+AH105+AJ105+AL105+AN105+AP105+AR105 -> 18337.45296 | S105: =+SUM(S51:S104) -> 4342.5 | T105: =+SUM(T51:T104) -> 43.425 | U105: =+SUM(U51:U104) -> 19750 | V105: 335.75 | W105: 6887 | X105: 137.74 | Y105: 28128 | Z105: 843.84 | AA105: 14325 | AB105: 859.5 | AC105: 7549.9 | AD105: 4152.445 | AE105: 25478 | AF105: 101.912 | AG105: 44040 | AH105: 1761.6 | AI105: 16194.083 | AJ105: 9068.68648 | AK105: 6305 | AL105: 378.3 | AM105: 4435 | AN105: =+SUM(AN51:AN104) -> 134.4568627 | AO105: 6305 | AP105: 378.3 | AQ105: 4435 | AR105: 141.497619
S106: Consumo | T106: Coste | U106: Consumo | V106: Coste | W106: Consumo | X106: Coste | Y106: Consumo | Z106: Coste | AA106: Consumo | AB106: Coste | AC106: Consumo | AD106: Coste | AE106: Consumo | AF106: Coste | AG106: Consumo | AH106: Coste | AI106: Consumo | AJ106: Coste | AK106: Consumo | AL106: Coste | AM106: Consumo | AN106: Coste | AO106: Consumo | AP106: Coste | AQ106: Consumo | AR106: Coste
S107: HILO 80/20 0,25 | T107: HILO 80/20 0,25 | U107: HILO 80/20 0,33 | V107: HILO 80/20 0,33 | W107: HILO 80/20 0,35 | X107: HILO 80/20 0,35 | Y107: HILO 80/20 0,40 | Z107: HILO 80/20 0,40 | AA107: HILO 80/20 0,55 | AB107: HILO 80/20 0,55 | AC107: MAGNES ALFA 4B | AD107: MAGNES ALFA 4B | AE107: TAPON PLÁSTICO 9,5 6666 | AF107: TAPON PLÁSTICO 9,5 6666 | AG107: TFM 444 Z33 | AH107: TFM 444 Z33 | AI107: TUBO 333 9,5/45 | AJ107: TUBO 333 9,5/45 | AK107: VARILLA A 3/65 11 | AL107: VARILLA A 3/65 11 | AM107: VARILLA A 3/65 22 | AN107: VARILLA A 3/65 22 | AO107: VARILLA B 3/65 11 | AP107: VARILLA B 3/65 11 | AQ107: VARILLA B 3/65 22 | AR107: VARILLA B 3/65 22
Q112: Fase | R112: Material | S112: Unidades | T112: Tamaño envase | U112: Consumo un. | V112: Coste € | W112: Si € | X112: Compras € | Y112: Consumo un. | Z112: Consumos € | AA112: Sf €
Q113: Bobinado | R113: HILO 80/20 0,25 | S113: mm | T113: 10000 | U113: 4342.5 | V113: 43.425 | W113: 2300 | X113: 0 | Y113: =+T113 -> 10000 | Z113: =+V113*Y113/U113 -> 100 | AA113: =+W113+X113-Z113 -> 2200
Q114: Bobinado | R114: HILO 80/20 0,33 | S114: mm | T114: 10000 | U114: 19750 | V114: 335.75 | W114: 6800 | X114: 0 | Y114: =+T114*2 -> 20000 | Z114: =+V114*Y114/U114 -> 340 | AA114: =+W114+X114-Z114 -> 6460
Q115: Bobinado | R115: HILO 80/20 0,35 | S115: mm | T115: 10000 | U115: 6887 | V115: 137.74 | W115: 9800 | X115: 0 | Y115: 10000 | Z115: 200 | AA115: 9600
Q116: Bobinado | R116: HILO 80/20 0,40 | S116: mm | T116: 10000 | U116: 28128 | V116: 843.84 | W116: 9000 | X116: 0 | Y116: =+T116*3 -> 30000 | Z116: 900 | AA116: 8100
Q117: Bobinado | R117: HILO 80/20 0,55 | S117: mm | T117: 10000 | U117: 14325 | V117: 859.5 | W117: 18000 | X117: 0 | Y117: 20000 | Z117: 1200 | AA117: 16800
Q118: Bobinado/Rellenado | R118: TAPON PLÁSTICO 9,5 6666 | S118: un. | T118: 3000 | U118: 25478 | V118: 101.912 | W118: 1200 | X118: 0 | Y118: =+T118*9 -> 27000 | Z118: 108 | AA118: 1092
Q119: Bobinado | R119: VARILLA A 3/65 11 | S119: un. | T119: 1000 | U119: 6305 | V119: 378.3 | W119: 2220 | X119: 0 | Y119: =+T119*7 -> 7000 | Z119: 420 | AA119: 1800
Q120: Bobinado | R120: VARILLA A 3/65 22 | S120: un. | T120: 1000 | U120: 4435 | V120: 134.46 | W120: 120 | X120: 1550 | Y120: =+T120*5 -> 5000 | Z120: 151.96 | AA120: =+W120+X120-Z120 -> 1518.04
Q121: Bobinado | R121: VARILLA B 3/65 11 | S121: un. | T121: 1000 | U121: 6305 | V121: 378.3 | W121: 2340 | X121: 0 | Y121: =+T121*7 -> 7000 | Z121: 420 | AA121: 1920
Q122: Bobinado | R122: VARILLA B 3/65 22 | S122: un. | T122: 1000 | U122: 4435 | V122: 141.495 | W122: 90 | X122: 1920 | Y122: 5000 | Z122: 159.52 | AA122: 1850.48
Q123: Extrusionado | R123: TFM 444 Z33 | S123: un. | T123: 2000 | U123: 44040 | V123: 1761.6 | W123: 5200 | X123: 0 | Y123: =+T123*23 -> 46000 | Z123: 1840 | AA123: 3360
Q124: Rellenado | R124: MAGNES ALFA 4B | S124: grs | T124: 1000 | U124: 7549.9 | V124: 4152.445 | W124: 23650 | X124: 0 | Y124: =+T124*8 -> 8000 | Z124: 4400 | AA124: 19250
Q125: Rellenado | R125: TUBO 333 9,5/45 | S125: mm | T125: 20000 | U125: 16194.083 | V125: 9068.68648 | W125: 33600 | X125: 0 | Y125: =+T125*1 -> 20000 | Z125: 11200 | AA125: 22400
V126: =SUM(V113:V125) -> 18337.45348 | Z126: =SUM(Z113:Z125) -> 21439.48 | AA126: =SUM(AA113:AA125) -> 96350.52
R140: Artículo | S140: # Fase | T140: Fase | U140: coste | V140: Unidades Pedido | W140: Unidades fabric. | X140: Coste unitario
R141: 201500116 | S141: 01 | T141: Bucle | U141: 50.46166667 | V141: 450 | W141: 455 | X141: 0.1109047619
R142: 201500116 | S142: 02 | T142: Relle | U142: 266.266 | V142: 450 | W142: 455 | X142: 0.5852
R143: 201500116 | S143: 03 | T143: Extru | U143: 54.6 | V143: 450 | W143: 455 | X143: 0.12
R144: 201500119 | S144: 01 | T144: Bucle | U144: 388.7211905 | V144: 3500 | W144: 3505 | X144: 0.1109047619
R145: 201500119 | S145: 02 | T145: Relle | U145: 2051.126 | V145: 3500 | W145: 3505 | X145: 0.5852
R146: 201500119 | S146: 03 | T146: Extru | U146: 420 | V146: 3500 | W146: 3500 | X146: 0.12
R147: 201500120 | S147: 01 | T147: Bucle | U147: 0.5545238095 | V147: 3500 | W147: 5 | X147: 0.1109047619
R148: 201500120 | S148: 02 | T148: Relle | U148: 2.926 | V148: 3500 | W148: 5 | X148: 0.5852
R149: 201500121 | S149: 01 | T149: Bucle | U149: 14.41761905 | V149: 120 | W149: 130 | X149: 0.1109047619
R150: 201500121 | S150: 02 | T150: Relle | U150: 76.076 | V150: 120 | W150: 130 | X150: 0.5852
R151: 201500121 | S151: 03 | T151: Extru | U151: 15.6 | V151: 120 | W151: 130 | X151: 0.12
R152: 201500122 | S152: 01 | T152: Bucle | U152: 717.5 | V152: 1200 | W152: 1250 | X152: 0.574
R153: 201500122 | S153: 02 | T153: Relle | U153: 461.686 | V153: 1200 | W153: 370 | X153: 1.2478
R154: 201500122 | S154: 02 | T154: Relle | U154: 1048.152 | V154: 1200 | W154: 840 | X154: 1.2478
R155: 201500122 | S155: 03 | T155: Extru | U155: 72 | V155: 1200 | W155: 600 | X155: 0.12
R156: 201500122 | S156: 03 | T156: Extru | U156: 72 | V156: 1200 | W156: 600 | X156: 0.12
R157: Anulada | S157: 01 | T157: Bucle | U157: 262.28 | V157: 825 | W157: 830 | X157: 0.316
R158: 201500123 | S158: 01 | T158: Bucle | U158: 265.44 | V158: 825 | W158: 840 | X158: 0.316
R159: Anulada | S159: 02 | T159: Relle | U159: 825.40528 | V159: 825 | W159: 826 | X159: 0.99928
R160: 201500123 | S160: 02 | T160: Relle | U160: 834.3988 | V160: 825 | W160: 835 | X160: 0.99928
R161: Anulada | S161: 03 | T161: Extru | U161: 99 | V161: 825 | W161: 825 | X161: 0.12
R162: 201500123 | S162: 03 | T162: Extru | U162: 99.6 | V162: 825 | W162: 830 | X162: 0.12
R163: 201500124 | S163: 01 | T163: Bucle | U163: 292.3 | V163: 900 | W163: 925 | X163: 0.316
R164: 201500124 | S164: 02 | T164: Relle | U164: 914.3412 | V164: 900 | W164: 915 | X164: 0.99928
R165: 201500124 | S165: 03 | T165: Extru | U165: 108.24 | V165: 900 | W165: 902 | X165: 0.12
R166: 201500125 | S166: 01 | T166: Bucle | U166: 568.8 | V166: 1800 | W166: 1800 | X166: 0.316
R167: 201500125 | S167: 02 | T167: Relle | U167: 1798.704 | V167: 1800 | W167: 1800 | X167: 0.99928
R168: 201500125 | S168: 03 | T168: Extru | U168: 216 | V168: 1800 | W168: 1800 | X168: 0.12
R169: 201500126 | S169: 01 | T169: Bucle | U169: 6.099761905 | V169: 50 | W169: 55 | X169: 0.1109047619
R170: 201500126 | S170: 02 | T170: Relle | U170: 30.4304 | V170: 50 | W170: 52 | X170: 0.5852
R171: 201500126 | S171: 03 | T171: Extru | U171: 5.76 | V171: 50 | W171: 48 | X171: 0.12
R172: 201500127 | S172: 01 | T172: Bucle | U172: 492.5037143 | V172: 2450 | W172: 2460 | X172: 0.2002047619
R173: 201500127 | S173: 02 | T173: Relle | U173: 1881.9504 | V173: 2450 | W173: 1635 | X173: 1.15104
R174: 201500127 | S174: 02 | T174: Relle | U174: 938.0976 | V174: 2450 | W174: 815 | X174: 1.15104
R175: 201500127 | S175: 03 | T175: Extru | U175: 294 | V175: 2450 | W175: 2450 | X175: 0.12
R176: 201500128 | S176: 01 | T176: Bucle | U176: 8.008190476 | V176: 40 | W176: 40 | X176: 0.2002047619
R177: 201500128 | S177: 02 | T177: Relle | U177: 46.0416 | V177: 40 | W177: 40 | X177: 1.15104
R178: 201500128 | S178: 03 | T178: Extru | U178: 4.8 | V178: 40 | W178: 40 | X178: 0.12
R179: 201500129 | S179: 01 | T179: Bucle | U179: 378.84 | V179: 650 | W179: 660 | X179: 0.574
R180: 201500129 | S180: 02 | T180: Relle | U180: 823.548 | V180: 650 | W180: 660 | X180: 1.2478
R181: 201500129 | S181: 03 | T181: Extru | U181: 78.6 | V181: 650 | W181: 655 | X181: 0.12
R182: 201500130 | S182: 01 | T182: Bucle | U182: 8.316190476 | V182: 40 | W182: 40 | X182: 0.2079047619
R183: 201500130 | S183: 02 | T183: Relle | U183: 31.6784 | V183: 40 | W183: 40 | X183: 0.79196
R184: 201500130 | S184: 03 | T184: Extru | U184: 4.8 | V184: 40 | W184: 40 | X184: 0.12
R185: 201500131 | S185: 01 | T185: Bucle | U185: 127.0228852 | V185: 600 | W185: 610 | X185: 0.208234238
R186: 201500131 | S186: 02 | T186: Relle | U186: 475.176 | V186: 600 | W186: 600 | X186: 0.79196
R187: 201500131 | S187: 03 | T187: Extru | U187: 24 | V187: 600 | W187: 200 | X187: 0.12
R188: 201500131 | S188: 03 | T188: Extru | U188: 47.4 | V188: 600 | W188: 395 | X188: 0.12
R189: 201500132 | S189: 01 | T189: Bucle | U189: 22.97736695 | V189: 100 | W189: 110 | X189: 0.2088851541
R190: 201500132 | S190: 02 | T190: Relle | U190: 83.1558 | V190: 100 | W190: 105 | X190: 0.79196
R191: 201500132 | S191: 03 | T191: Extru | U191: 12 | V191: 100 | W191: 100 | X191: 0.12
R192: 201500133 | S192: 01 | T192: Bucle | U192: 43.86588235 | V192: 200 | W192: 210 | X192: 0.2088851541
R193: 201500133 | S193: 02 | T193: Relle | U193: 158.392 | V193: 200 | W193: 200 | X193: 0.79196
R194: 201500133 | S194: 03 | T194: Extru | U194: 24 | V194: 200 | W194: 200 | X194: 0.12
R195: 201500134 | S195: 01 | T195: Bucle | U195: 101.8154902 | V195: 900 | W195: 910 | X195: 0.1118851541
R196: 201500134 | S196: 02 | T196: Relle | U196: 532.532 | V196: 900 | W196: 910 | X196: 0.5852
R197: 201500134 | S197: 03 | T197: Extru | U197: 109.2 | V197: 900 | W197: 910 | X197: 0.12
U198: =+SUM(U141:U197) -> 18791.60796

Sheet SEMITERMINADO
A1: R E D S Y S T E M C E , S. L.
C3: RELACIÓN DE SEMITERMINADO EN PERIODO Y FASE | M3: 2015-01-17
C4: valor de los consumos de materiales
B7: DESDE | C7: HASTA | D7: FASE
B8: 20150110 | C8: 20150117 | D8: 0003
I9: Entradas | M9: Salidas | P9: Existencias
A10: ResClav01 | B10: ResClav02 | C10: ResClav03 | D10: Fecha | E10: Concepto | F10: Fase | G10: | | H10: precio unitario | I10: cantidad | J10: valor | K10: | | L10: precio unitario | M10: cantidad | N10: valor | O10: | | P10: precio unitario | Q10: cantidad | R10: valor
A11: -------- | B11: -------- | C11: -------- | D11: -------- | E11: -------- | F11: -------- | G11: | | H11: -------- | I11: -------- | J11: -------- | K11: | | L11: -------- | M11: -------- | N11: -------- | O11: | | P11: -------- | Q11: -------- | R11: --------
A12: RE220 | B12: TU-12 | C12: 003359 | D12: 20150110 | E12: 201500116 | F12: 001 | G12: | | H12: =+J12/I12 -> 0.1109047619 | I12: 455 | J12: =+FichasTecnicas!R47 -> 50.46166667 | K12: | | O12: | | P12: =+H12 -> 0.1109047619 | Q12: 455 | R12: =+J12 -> 50.46166667
A13: RE220 | B13: TU-12 | C13: 003359 | D13: 20150110 | E13: 201500119 | F13: 001 | G13: | | H13: =+J13/I13 -> 0.1109047619 | I13: 3505 | J13: =+FichasTecnicas!R48 -> 388.7211905 | K13: | | O13: | | P13: =+H13 -> 0.1109047619 | Q13: 3505 | R13: =+J13 -> 388.7211905
A14: RE220 | B14: TU-12 | C14: 003359 | D14: 20150111 | E14: 201500120 | F14: 001 | G14: | | H14: 0.1109047619 | I14: 5 | J14: =+FichasTecnicas!R49 -> 0.5545238095 | K14: | | O14: | | P14: 0.1109047619 | Q14: 5 | R14: 0.5545238095
A15: RE220 | B15: TU-12 | C15: 003359 | D15: 20150111 | E15: 201500121 | F15: 001 | G15: | | H15: 0.1109047619 | I15: 130 | J15: =+FichasTecnicas!R50 -> 14.41761905 | K15: | | O15: | | P15: 0.1109047619 | Q15: 130 | R15: 14.41761905
A16: RE220 | B16: TU-12 | C16: 003359 | D16: 20150112 | E16: 201500116 | F16: 001 | G16: | | K16: | | L16: =+N16/M16 -> 0.1109047619 | M16: 455 | N16: =+J12 -> 50.46166667 | O16: | | R16: =+R12-N16 -> 0
A17: RE220 | B17: TU-12 | C17: 003359 | D17: 20150112 | E17: 201500119 | F17: 001 | G17: | | K17: | | L17: =+N17/M17 -> 0.1109047619 | M17: 3505 | N17: =+J13 -> 388.7211905 | O17: | | R17: =+R13-N17 -> 0
A18: RE220 | B18: TU-12 | C18: 003359 | D18: 20150112 | E18: 201500120 | F18: 001 | G18: | | K18: | | L18: 0.1109047619 | M18: 5 | N18: 0.5545238095 | O18: | | R18: 0
A19: RE220 | B19: TU-12 | C19: 003359 | D19: 20150112 | E19: 201500121 | F19: 001 | G19: | | K19: | | L19: 0.1109047619 | M19: 130 | N19: 14.41761905 | O19: | | R19: 0
A20: RE220 | B20: TU-12 | C20: 003359 | D20: 20150112 | E20: 201500120 | F20: 002 | G20: | | H20: =+Resumen!L17 -> 0.6961047619 | I20: 5 | J20: =+H20*I20 -> 3.48052381 | K20: | | O20: | | P20: =+H20 -> 0.6961047619 | Q20: 5 | R20: =+P20*Q20 -> 3.48052381
A21: RE220 | B21: TU-12 | C21: 003359 | D21: 20150112 | E21: 201500116 | F21: 003 | G21: | | H21: =+Resumen!L15 -> 0.8161047619 | I21: 455 | J21: =+I21*H21 -> 371.3276667 | K21: | | O21: | | P21: =+H21 -> 0.8161047619 | Q21: 455 | R21: =+Q21*P21 -> 371.3276667
A22: RE220 | B22: TU-12 | C22: 003359 | D22: 20150112 | E22: 201500119 | F22: 003 | G22: | | H22: =+Resumen!L16 -> 0.8170991973 | I22: 3500 | J22: =+H22*I22 -> 2859.84719 | K22: | | O22: | | P22: 0.8170991973 | Q22: 3500 | R22: =+P22*Q22 -> 2859.84719
A23: RE220 | B23: TU-12 | C23: 003359 | D23: 20150113 | E23: 201500121 | F23: 003 | G23: | | H23: =+Resumen!L18 -> 0.8161047619 | I23: 130 | J23: =+I23*H23 -> 106.093619 | K23: | | O23: | | P23: 0.8161047619 | Q23: 130 | R23: =+Q23*P23 -> 106.093619
A24: RE220 | B24: TU-12 | C24: 003359 | D24: 20150115 | E24: 201500126 | F24: 003 | G24: | | H24: =+Resumen!L23 -> 0.8810450397 | I24: 48 | J24: =+H24*I24 -> 42.2901619 | K24: | | O24: | | P24: 0.8810450397 | Q24: 48 | R24: =+P24*Q24 -> 42.2901619
A25: RE220 | B25: TU-12 | C25: 003359 | D25: 20150115 | E25: 201500134 | F25: 003 | G25: | | H25: =+Resumen!L31 -> 0.8170851541 | I25: 910 | J25: =+I25*H25 -> 743.5474902 | K25: | | O25: | | P25: 0.8170851541 | Q25: 910 | R25: =+Q25*P25 -> 743.5474902
A26: -------- | B26: -------- | C26: -------- | D26: -------- | E26: -------- | F26: -------- | G26: | | H26: -------- | I26: -------- | J26: -------- | K26: | | L26: -------- | M26: -------- | N26: -------- | O26: | | P26: -------- | Q26: -------- | R26: --------
A27: RE225 | B27: TU-80 | C27: 000012 | D27: 20150116 | E27: 201500127 | F27: 003 | G27: | | H27: =+Resumen!L24 -> 1.472061924 | I27: 2450 | J27: =+H27*I27 -> 3606.551714 | K27: | | O27: | | P27: 1.472061924 | Q27: 2450 | R27: =+P27*Q27 -> 3606.551714
A28: RE225 | B28: TU-80 | C28: 000012 | D28: 20150116 | E28: 201500128 | F28: 003 | G28: | | H28: =+Resumen!L25 -> 1.471244762 | I28: 40 | J28: 58.84979048 | K28: | | O28: | | P28: 1.471244762 | Q28: 40 | R28: 58.84979048
A29: -------- | B29: -------- | C29: -------- | D29: -------- | E29: -------- | F29: -------- | G29: | | H29: -------- | I29: -------- | J29: -------- | K29: | | L29: -------- | M29: -------- | N29: -------- | O29: | | P29: -------- | Q29: -------- | R29: --------
A30: RE220 | B30: TU-80 | C30: 000045 | D30: 20150114 | E30: 201500122 | F30: 003 | G30: | | H30: =+Resumen!L19 -> 1.976115 | I30: =+PRODUCCION!J55+PRODUCCION!J56 -> 1200 | J30: 2371.338 | K30: | | O30: | | P30: 1.976115 | Q30: 1200 | R30: 2371.338
A31: RE220 | B31: TU-80 | C31: 000045 | D31: 20150115 | E31: 201500129 | F31: 003 | G31: | | H31: =+Resumen!L26 -> 1.95570687 | I31: =+PRODUCCION!J57 -> 655 | J31: 1280.988 | K31: | | O31: | | P31: 1.95570687 | Q31: 655 | R31: 1280.988
A32: -------- | B32: -------- | C32: -------- | D32: -------- | E32: -------- | F32: -------- | G32: | | H32: -------- | I32: -------- | J32: -------- | K32: | | L32: -------- | M32: -------- | N32: -------- | O32: | | P32: -------- | Q32: -------- | R32: --------
A33: RE225 | B33: TU-80 | C33: 000428 | D33: 20150113 | E33: 201500123 | F33: 003 | G33: | | H33: =+Resumen!L20 -> 1.445106988 | I33: 825 | J33: 1192.213265 | K33: | | O33: | | P33: 1.445106988 | Q33: 830 | R33: 1199.4388
A34: RE225 | B34: TU-80 | C34: 000428 | D34: 20150113 | E34: 201500124 | F34: 003 | G34: | | H34: =+Resumen!L21 -> 1.45773969 | I34: 902 | J34: 1314.8812 | K34: | | O34: | | P34: 1.45773969 | Q34: 902 | R34: 1314.8812
A35: RE225 | B35: TU-80 | C35: 000428 | D35: 20150113 | E35: 201500125 | F35: 003 | G35: | | H35: =+Resumen!L22 -> 1.43528 | I35: 1800 | J35: 2583.504 | K35: | | O35: | | P35: 1.43528 | Q35: 1800 | R35: 2583.504
A36: -------- | B36: -------- | C36: -------- | D36: -------- | E36: -------- | F36: -------- | G36: | | H36: -------- | I36: -------- | J36: -------- | K36: | | L36: -------- | M36: -------- | N36: -------- | O36: | | P36: -------- | Q36: -------- | R36: --------
A37: RE225 | B37: TU-80 | C37: 000662 | D37: 20150116 | E37: 201500130 | F37: 003 | G37: | | H37: =+Resumen!L27 -> 1.119864762 | I37: 40 | J37: 44.79459048 | K37: | | O37: | | P37: 1.119864762 | Q37: =+I37 -> 40 | R37: 44.79459048
A38: RE225 | B38: TU-80 | C38: 000662 | D38: 20150117 | E38: 201500131 | F38: 003 | G38: | | H38: =+Resumen!L28 -> 1.132098967 | I38: 595 | J38: 673.5988852 | K38: | | O38: | | P38: 1.132098967 | Q38: =+I38 -> 595 | R38: 673.5988852
A39: RE225 | B39: TU-80 | C39: 000662 | D39: 20150117 | E39: 201500132 | F39: 003 | G39: | | H39: =+Resumen!L29 -> 1.181331669 | I39: 100 | J39: 118.1331669 | K39: | | O39: | | P39: 1.181331669 | Q39: 100 | R39: 118.1331669
A40: RE225 | B40: TU-80 | C40: 000662 | D40: 20150117 | E40: 201500133 | F40: 003 | G40: | | H40: =+Resumen!L30 -> 1.131289412 | I40: 200 | J40: 226.2578824 | K40: | | O40: | | P40: 1.131289412 | Q40: =+I40 -> 200 | R40: 226.2578824
A41: -------- | B41: -------- | C41: -------- | D41: -------- | E41: -------- | F41: -------- | G41: | | H41: -------- | I41: -------- | J41: -------- | K41: | | L41: -------- | M41: -------- | N41: -------- | O41: | | P41: -------- | Q41: -------- | R41: --------
A43: + + + + + + + + + + + + + + + + + + + + + + + + V A L O R S E M I T E R M I N A D O ( E U R O S ) * * * * * * * * * * * * * * * * * | Q43: =+SUM(R20:R40) -> 17604.92268

Sheet Resumen
A3: R E D S Y S T E M C E , S. L.
A6: RESUMEN DEL COSTE DE MATERIALES POR OF Y FASE
A10: Tabla dinámica
B12: 01 | C12: Bobinado | E12: 02 | F12: Rellenado | H12: 03 | I12: Extrusionado | K12: Suma
A13: OF | B13: UnitFab | C13: Coste mp | D13: Coste unitario | E13: UnitFab | F13: Coste mp | G13: Coste unitario | H13: UnitFab | I13: Coste mp | J13: Coste unitario | K13: Coste mp | L13: Coste unitario
B14: unid. | C14: euros | D14: euros/unid. | E14: unid. | F14: euros | G14: euros/unid. | H14: unid. | I14: euros | J14: euros/unid. | K14: euros | L14: euros/unid.
A15: 201500116 | B15: 455 | C15: 50.46166667 | D15: =+C15/B15 -> 0.1109047619 | E15: 455 | F15: 266.266 | G15: =+F15/E15 -> 0.5852 | H15: 455 | I15: 54.6 | J15: =+I15/H15 -> 0.12 | K15: =+I15+F15+C15 -> 371.3276667 | L15: =+K15/H15 -> 0.8161047619
A16: 201500119 | B16: 3505 | C16: 388.7211905 | D16: =+C16/B16 -> 0.1109047619 | E16: 3505 | F16: 2051.126 | G16: =+F16/E16 -> 0.5852 | H16: 3500 | I16: 420 | J16: =+I16/H16 -> 0.12 | K16: =+I16+F16+C16 -> 2859.84719 | L16: =+K16/H16 -> 0.8170991973
A17: 201500120 | B17: 5 | C17: 0.5545238095 | D17: 0.1109047619 | E17: 5 | F17: 2.926 | G17: 0.5852 | K17: 3.48052381 | L17: =+K17/E17 -> 0.6961047619
A18: 201500121 | B18: 130 | C18: 14.41761905 | D18: 0.1109047619 | E18: 130 | F18: 76.076 | G18: 0.5852 | H18: 130 | I18: 15.6 | J18: 0.12 | K18: 106.093619 | L18: =+K18/H18 -> 0.8161047619
A19: 201500122 | B19: 1250 | C19: 717.5 | D19: 0.574 | E19: 1210 | F19: 1509.838 | G19: 1.2478 | H19: 1200 | I19: 144 | J19: 0.12 | K19: 2371.338 | L19: 1.976115
A20: 201500123 | B20: 840 | C20: 265.44 | D20: 0.316 | E20: 835 | F20: 834.3988 | G20: 0.99928 | H20: 830 | I20: 99.6 | J20: 0.12 | K20: 1199.4388 | L20: 1.445106988
A21: 201500124 | B21: 925 | C21: 292.3 | D21: 0.316 | E21: 915 | F21: 914.3412 | G21: 0.99928 | H21: 902 | I21: 108.24 | J21: 0.12 | K21: 1314.8812 | L21: 1.45773969
A22: 201500125 | B22: 1800 | C22: 568.8 | D22: 0.316 | E22: 1800 | F22: 1798.704 | G22: 0.99928 | H22: 1800 | I22: 216 | J22: 0.12 | K22: 2583.504 | L22: 1.43528
A23: 201500126 | B23: 55 | C23: 6.099761905 | D23: 0.1109047619 | E23: 52 | F23: 30.4304 | G23: 0.5852 | H23: 48 | I23: 5.76 | J23: 0.12 | K23: 42.2901619 | L23: 0.8810450397
A24: 201500127 | B24: 2460 | C24: 492.5037143 | D24: 0.2002047619 | E24: 2450 | F24: 2820.048 | G24: 1.15104 | H24: 2450 | I24: 294 | J24: 0.12 | K24: 3606.551714 | L24: 1.472061924
A25: 201500128 | B25: 40 | C25: 8.008190476 | D25: 0.2002047619 | E25: 40 | F25: 46.0416 | G25: 1.15104 | H25: 40 | I25: 4.8 | J25: 0.12 | K25: 58.84979048 | L25: 1.471244762
A26: 201500129 | B26: 660 | C26: 378.84 | D26: 0.574 | E26: 660 | F26: 823.548 | G26: 1.2478 | H26: 655 | I26: 78.6 | J26: 0.12 | K26: 1280.988 | L26: 1.95570687
A27: 201500130 | B27: 40 | C27: 8.316190476 | D27: 0.2079047619 | E27: 40 | F27: 31.6784 | G27: 0.79196 | H27: 40 | I27: 4.8 | J27: 0.12 | K27: 44.79459048 | L27: 1.119864762
A28: 201500131 | B28: 610 | C28: 127.0228852 | D28: 0.208234238 | E28: 600 | F28: 475.176 | G28: 0.79196 | H28: 595 | I28: 71.4 | J28: 0.12 | K28: 673.5988852 | L28: 1.132098967
A29: 201500132 | B29: 110 | C29: 22.97736695 | D29: 0.2088851541 | E29: 105 | F29: 83.1558 | G29: 0.79196 | H29: 100 | I29: 12 | J29: 0.12 | K29: 118.1331669 | L29: 1.181331669
A30: 201500133 | B30: 210 | C30: 43.86588235 | D30: 0.2088851541 | E30: 200 | F30: 158.392 | G30: 0.79196 | H30: 200 | I30: 24 | J30: 0.12 | K30: 226.2578824 | L30: 1.131289412
A31: 201500134 | B31: 910 | C31: 101.8154902 | D31: 0.1118851541 | E31: 910 | F31: 532.532 | G31: 0.5852 | H31: 910 | I31: 109.2 | J31: 0.12 | K31: 743.5474902 | L31: 0.8170851541
A32: Anulada | B32: 830 | C32: 262.28 | D32: 0.316 | E32: 826 | F32: 825.40528 | G32: 0.99928 | H32: 825 | I32: 99 | J32: 0.12 | K32: =+I32+F32+C32 -> 1186.68528 | L32: 1.4384064
B33: =SUM(B15:B32) -> 14835 | C33: =SUM(C15:C32) -> 3749.924482 | D33: =+C33/B33 -> 0.2527754959 | E33: =SUM(E15:E32) -> 14738 | F33: =SUM(F15:F32) -> 13280.08348 | G33: =+F33/E33 -> 0.9010777229 | H33: =SUM(H15:H32) -> 14680 | I33: =SUM(I15:I32) -> 1761.6 | J33: =+I33/H33 -> 0.12 | K33: =+I33+F33+C33 -> 18791.60796 | L33: =+D33+G33+J33 -> 1.273853219
